Workbook

Sheet Simulation Result
C2: Volatility | D2: =vol -> 0.1 | I2: Structuring | O2: With Risk
C3: Mean Reversion | D3: =mr -> 0.07
C4: DSCR Target | D4: =target_dscr -> 1.1
C6: Average DSCR | D6: 1.199106838
C7: Average LLCR | D7: 1.99307887
C8: Average PLCR | D8: 2.425734791
C11: Probability DSCR<1 | D11: 0.1570000052
C12: Count LLCR | D12: 0
C13: Count PLCR | D13: 0

Sheet Model
E1: Target DSCR | G1: =target_dscr -> 1.1 | I1: Equity IRR | J1: =E41 -> 0.07185247667
B2: Simulation Model | E2: Volatility | G2: =vol -> 0.1
E3: Mean Reversion | G3: =mr -> 0.07
B4: Period | F4: 0 | G4: 1 | H4: 2 | I4: 3 | J4: 4 | K4: 5 | L4: 6 | M4: 7 | N4: 8 | O4: 9 | P4: 10 | Q4: 11 | R4: 12 | S4: 13 | T4: 14 | U4: 15 | V4: 16 | W4: 17 | X4: 18 | Y4: 19 | Z4: 20 | AA4: 21 | AB4: 22 | AC4: 23 | AD4: 24 | AE4: 25 | AF4: 26 | AG4: 27 | AH4: 28 | AI4: 29 | AJ4: 30 | AK4: 31 | AL4: 32 | AM4: 33 | AN4: 34 | AO4: 35
B6: Operating Cash Flow for Structuring
C7: Base CFADS | E7: 75 | G7: =$E$7 -> 75 | H7: =$E$7 -> 75 | I7: 75 | J7: 75 | K7: 75 | L7: 75 | M7: 75 | N7: 75 | O7: 75 | P7: 75 | Q7: 75 | R7: 75 | S7: 75 | T7: 75 | U7: 75 | V7: 75 | W7: 75 | X7: 75 | Y7: 75 | Z7: 75 | AA7: 75 | AB7: 75 | AC7: 75 | AD7: 75 | AE7: 75 | AF7: 75 | AG7: 75 | AH7: 75 | AI7: 75 | AJ7: 75 | AK7: 75 | AL7: 75 | AM7: 75 | AN7: 75 | AO7: 75
C8: Growth Rate | E8: 0.015 | F8: 1 | G8: =F8*(1+$E$8) -> 1.015 | H8: =G8*(1+$E$8) -> 1.030225 | I8: 1.045678375 | J8: 1.061363551 | K8: 1.077284004 | L8: 1.093443264 | M8: 1.109844913 | N8: 1.126492587 | O8: 1.143389975 | P8: 1.160540825 | Q8: 1.177948937 | R8: 1.195618171 | S8: 1.213552444 | T8: 1.231755731 | U8: 1.250232067 | V8: 1.268985548 | W8: 1.288020331 | X8: 1.307340636 | Y8: 1.326950745 | Z8: 1.346855007 | AA8: 1.367057832 | AB8: 1.387563699 | AC8: 1.408377155 | AD8: 1.429502812 | AE8: 1.450945354 | AF8: 1.472709534 | AG8: 1.494800177 | AH8: 1.51722218 | AI8: 1.539980513 | AJ8: 1.56308022 | AK8: 1.586526424 | AL8: 1.61032432 | AM8: 1.634479185 | AN8: 1.658996373 | AO8: 1.683881318
C9: CFADS with Growth | G9: =G7*G8 -> 76.125 | H9: =H7*H8 -> 77.266875 | I9: 78.42587812 | J9: 79.6022663 | K9: 80.79630029 | L9: 82.0082448 | M9: 83.23836847 | N9: 84.48694399 | O9: 85.75424815 | P9: 87.04056188 | Q9: 88.34617031 | R9: 89.67136286 | S9: 91.0164333 | T9: 92.3816798 | U9: 93.767405 | V9: 95.17391607 | W9: 96.60152482 | X9: 98.05054769 | Y9: 99.5213059 | Z9: 101.0141255 | AA9: 102.5293374 | AB9: 104.0672774 | AC9: 105.6282866 | AD9: 107.2127109 | AE9: 108.8209016 | AF9: 110.4532151 | AG9: 112.1100133 | AH9: 113.7916635 | AI9: 115.4985385 | AJ9: 117.2310165 | AK9: 118.9894818 | AL9: 120.774324 | AM9: 122.5859389 | AN9: 124.424728 | AO9: 126.2910989
C10: Winter Season | G10: =MOD(G4,2)=0 -> FALSE | H10: =MOD(H4,2)=0 -> TRUE | I10: FALSE | J10: TRUE | K10: FALSE | L10: TRUE | M10: FALSE | N10: TRUE | O10: FALSE | P10: TRUE | Q10: FALSE | R10: TRUE | S10: FALSE | T10: TRUE | U10: FALSE | V10: TRUE | W10: FALSE | X10: TRUE | Y10: FALSE | Z10: TRUE | AA10: FALSE | AB10: TRUE | AC10: FALSE | AD10: TRUE | AE10: FALSE | AF10: TRUE | AG10: FALSE | AH10: TRUE | AI10: FALSE | AJ10: TRUE | AK10: FALSE | AL10: TRUE | AM10: FALSE | AN10: TRUE | AO10: FALSE
C11: Seasonality | E11: 1.2 | F11: 0.9 | G11: =IF(G$10,$E$11,$F$11) -> 0.9 | H11: =IF(H$10,$E$11,$F$11) -> 1.2 | I11: 0.9 | J11: 1.2 | K11: 0.9 | L11: 1.2 | M11: 0.9 | N11: 1.2 | O11: 0.9 | P11: 1.2 | Q11: 0.9 | R11: 1.2 | S11: 0.9 | T11: 1.2 | U11: 0.9 | V11: 1.2 | W11: 0.9 | X11: 1.2 | Y11: 0.9 | Z11: 1.2 | AA11: 0.9 | AB11: 1.2 | AC11: 0.9 | AD11: 1.2 | AE11: 0.9 | AF11: 1.2 | AG11: 0.9 | AH11: 1.2 | AI11: 0.9 | AJ11: 1.2 | AK11: 0.9 | AL11: 1.2 | AM11: 0.9 | AN11: 1.2 | AO11: 0.9
C12: Cash Flow after seasonality | G12: =G11*G9 -> 68.5125 | H12: =H11*H9 -> 92.72025 | I12: 70.58329031 | J12: 95.52271956 | K12: 72.71667026 | L12: 98.40989375 | M12: 74.91453162 | N12: 101.3843328 | O12: 77.17882334 | P12: 104.4486743 | Q12: 79.51155327 | R12: 107.6056354 | S12: 81.91478997 | T12: 110.8580158 | U12: 84.3906645 | V12: 114.2086993 | W12: 86.94137233 | X12: 117.6606572 | Y12: 89.56917531 | Z12: 121.2169506 | AA12: 92.27640364 | AB12: 124.8807329 | AC12: 95.06545794 | AD12: 128.6552531 | AE12: 97.9388114 | AF12: 132.5438581 | AG12: 100.899012 | AH12: 136.5499962 | AI12: 103.9486846 | AJ12: 140.6772198 | AK12: 107.0905336 | AL12: 144.9291888 | AM12: 110.327345 | AN12: 149.3096735 | AO12: 113.661989
C13: CAPEX | E13: 1500
C14: Project Cashflow | F14: =F12-E13 -> -1500 | G14: =G12-G13 -> 68.5125 | H14: =H12-H13 -> 92.72025 | I14: 70.58329031 | J14: 95.52271956 | K14: 72.71667026 | L14: 98.40989375 | M14: 74.91453162 | N14: 101.3843328 | O14: 77.17882334 | P14: 104.4486743 | Q14: 79.51155327 | R14: 107.6056354 | S14: 81.91478997 | T14: 110.8580158 | U14: 84.3906645 | V14: 114.2086993 | W14: 86.94137233 | X14: 117.6606572 | Y14: 89.56917531 | Z14: 121.2169506 | AA14: 92.27640364 | AB14: 124.8807329 | AC14: 95.06545794 | AD14: 128.6552531 | AE14: 97.9388114 | AF14: 132.5438581 | AG14: 100.899012 | AH14: 136.5499962 | AI14: 103.9486846 | AJ14: 140.6772198 | AK14: 107.0905336 | AL14: 144.9291888 | AM14: 110.327345 | AN14: 149.3096735 | AO14: 113.661989
C15: Project IRR | E15: =IRR(F14:AN14) -> 0.05283381532
B17: Debt Structure - Fixed
C19: Maximum Debt to Capital | E19: 0.85
C20: Minimum DSCR | E20: =E174/100 -> 1.1
C22: Tenure | E22: 34 | G22: =G4<=$E$22 -> TRUE | H22: TRUE | I22: TRUE | J22: TRUE | K22: TRUE | L22: TRUE | M22: TRUE | N22: TRUE | O22: TRUE | P22: TRUE | Q22: TRUE | R22: TRUE | S22: TRUE | T22: TRUE | U22: TRUE | V22: TRUE | W22: TRUE | X22: TRUE | Y22: TRUE | Z22: TRUE | AA22: TRUE | AB22: TRUE | AC22: TRUE | AD22: TRUE | AE22: TRUE | AF22: TRUE | AG22: TRUE | AH22: TRUE | AI22: TRUE | AJ22: TRUE | AK22: TRUE | AL22: TRUE | AM22: TRUE | AN22: TRUE | AO22: FALSE
C23: DSCR | E23: =target_dscr -> 1.1 | F23: target_dscr | G23: =$E$23 -> 1.1 | H23: =$E$23 -> 1.1 | I23: 1.1 | J23: 1.1 | K23: 1.1 | L23: 1.1 | M23: 1.1 | N23: 1.1 | O23: 1.1 | P23: 1.1 | Q23: 1.1 | R23: 1.1 | S23: 1.1 | T23: 1.1 | U23: 1.1 | V23: 1.1 | W23: 1.1 | X23: 1.1 | Y23: 1.1 | Z23: 1.1 | AA23: 1.1 | AB23: 1.1 | AC23: 1.1 | AD23: 1.1 | AE23: 1.1 | AF23: 1.1 | AG23: 1.1 | AH23: 1.1 | AI23: 1.1 | AJ23: 1.1 | AK23: 1.1 | AL23: 1.1 | AM23: 1.1 | AN23: 1.1 | AO23: 1.1
C24: Debt Service with DSCR | G24: =G14/G23*G22 -> 62.28409091 | H24: =H14/H23*H22 -> 84.29113636 | I24: 64.16662756 | J24: 86.83883596 | K24: 66.10606387 | L24: 89.46353978 | M24: 68.10411966 | N24: 92.16757527 | O24: 70.16256667 | P24: 94.95334023 | Q24: 72.28323025 | R24: 97.82330494 | S24: 74.46799088 | T24: 100.7800143 | U24: 76.71878591 | V24: 103.8260903 | W24: 79.03761121 | X24: 106.9642338 | Y24: 81.42652301 | Z24: 110.1972278 | AA24: 83.88763967 | AB24: 113.527939 | AC24: 86.42314358 | AD24: 116.959321 | AE24: 89.03528309 | AF24: 120.4944165 | AG24: 91.72637452 | AH24: 124.1363602 | AI24: 94.49880419 | AJ24: 127.8883817 | AK24: 97.35503055 | AL24: 131.753808 | AM24: 100.2975863 | AN24: 135.7360669 | AO24: 0
C26: Cash Flow over Debt Term | G26: =G14*G22 -> 68.5125 | H26: =H14*H22 -> 92.72025 | I26: 70.58329031 | J26: 95.52271956 | K26: 72.71667026 | L26: 98.40989375 | M26: 74.91453162 | N26: 101.3843328 | O26: 77.17882334 | P26: 104.4486743 | Q26: 79.51155327 | R26: 107.6056354 | S26: 81.91478997 | T26: 110.8580158 | U26: 84.3906645 | V26: 114.2086993 | W26: 86.94137233 | X26: 117.6606572 | Y26: 89.56917531 | Z26: 121.2169506 | AA26: 92.27640364 | AB26: 124.8807329 | AC26: 95.06545794 | AD26: 128.6552531 | AE26: 97.9388114 | AF26: 132.5438581 | AG26: 100.899012 | AH26: 136.5499962 | AI26: 103.9486846 | AJ26: 140.6772198 | AK26: 107.0905336 | AL26: 144.9291888 | AM26: 110.327345 | AN26: 149.3096735 | AO26: 0
C27: Interest Rate | E27: 0.05 | G27: =$E$27 -> 0.05 | H27: 0.05 | I27: 0.05 | J27: 0.05 | K27: 0.05 | L27: 0.05 | M27: 0.05 | N27: 0.05 | O27: 0.05 | P27: 0.05 | Q27: 0.05 | R27: 0.05 | S27: 0.05 | T27: 0.05 | U27: 0.05 | V27: 0.05 | W27: 0.05 | X27: 0.05 | Y27: 0.05 | Z27: 0.05 | AA27: 0.05 | AB27: 0.05 | AC27: 0.05 | AD27: 0.05 | AE27: 0.05 | AF27: 0.05 | AG27: 0.05 | AH27: 0.05 | AI27: 0.05 | AJ27: 0.05 | AK27: 0.05 | AL27: 0.05 | AM27: 0.05 | AN27: 0.05 | AO27: 0.05
C28: PV of CFADS | E28: =NPV(E27,G26:AO26) -> 1558.76309
C29: LLCR | E29: =E28/(E19*E13) -> 1.222559286
C31: DSCR Applied in Debt Size | E31: =MAX(E29,target_dscr) -> 1.222559286
C32: Required Debt Service | G32: =G14/$E$31*G22 -> 56.04022707 | H32: =H14/$E$31*H22 -> 75.8411073 | I32: 57.73404293 | J32: 78.13340477 | K32: 59.47905438 | L32: 80.49498693 | M32: 61.2768088 | N32: 82.92794791 | O32: 63.12890034 | P32: 85.43444513 | Q32: 65.03697136 | R32: 88.01670124 | S32: 67.00271382 | T32: 90.67700603 | U32: 69.02787084 | V32: 93.41771854 | W32: 71.11423824 | X32: 96.24126908 | Y32: 73.26366609 | Z32: 99.15016144 | AA32: 75.47806039 | AB32: 102.1469751 | AC32: 77.75938477 | AD32: 105.2343674 | AE32: 80.10966217 | AF32: 108.4150761 | AG32: 82.53097671 | AH32: 111.6919218 | AI32: 85.02547549 | AJ32: 115.0678102 | AK32: 87.59537048 | AL32: 118.5457347 | AM32: 90.24294055 | AN32: 122.1287796 | AO32: 0
C34: NPV of Debt Service @ Interest Rate | E34: =NPV(E27,G32:AO32) -> 1275
C35: Equity issued | E35: =E13-E34 -> 225
C36: Debt to Capital | E36: =E34/E13 -> 0.85
C37: Equity Capital | E37: =E13-E34 -> 225
C39: Equity Cash Flow | F39: =F14+F45 -> -225 | G39: =G14-G32 -> 12.47227293 | H39: 16.8791427 | I39: 12.84924738 | J39: 17.38931479 | K39: 13.23761588 | L39: 17.91490683 | M39: 13.63772282 | N39: 18.45638489 | O39: 14.049923 | P39: 19.01422912 | Q39: 14.47458192 | R39: 19.5889342 | S39: 14.91207616 | T39: 20.18100973 | U39: 15.36279366 | V39: 20.79098075 | W39: 15.8271341 | X39: 21.41938814 | Y39: 16.30550923 | Z39: 22.06678915 | AA39: 16.79834324 | AB39: 22.73375785 | AC39: 17.30607317 | AD39: 23.42088568 | AE39: 17.82914923 | AF39: 24.12878195 | AG39: 18.36803526 | AH39: 24.85807439 | AI39: 18.92320913 | AJ39: 25.60940969 | AK39: 19.49516312 | AL39: 26.3834541 | AM39: 20.08440443 | AN39: 27.180894 | AO39: 113.661989
C41: Equity IRR | E41: =IRR(F39:AO39) -> 0.07185247667
C43: Opening Balance | G43: =F45 -> 1275 | H43: =G45 -> 1282.709773 | I43: 1271.004154 | J43: 1276.820319 | K43: 1262.52793 | L43: 1266.175272 | M43: 1248.989049 | N43: 1250.161693 | O43: 1229.741829 | P43: 1228.100021 | Q43: 1204.070576 | R43: 1199.237134 | S43: 1171.182289 | T43: 1162.73869 | U43: 1130.198619 | V43: 1117.680679 | W43: 1080.146994 | X43: 1063.040105 | Y43: 1019.950842 | Z43: 997.6847177 | AA43: 948.4187921 | AB43: 920.3616713 | AC43: 864.2327798 | AD43: 829.6850341 | AE43: 765.9349184 | AF43: 724.1220021 | AG43: 651.9130261 | AH43: 601.9777007 | AI43: 520.3846639 | AJ43: 461.3784216 | AK43: 369.3795325 | AL43: 300.2531387 | AM43: 196.7200609 | AN43: 116.3131234 | AO43: -7.020162229e-12
C44: Less: Repayment | G44: =G32-G46 -> -7.709772932 | H44: 11.70561865 | I44: -5.816164783 | J44: 14.29238881 | K44: -3.647342134 | L44: 17.18622331 | M44: -1.172643656 | N44: 20.41986327 | O44: 1.64180887 | P44: 24.0294441 | Q44: 4.833442532 | R44: 28.05484454 | S44: 8.443599344 | T44: 32.54007153 | U44: 12.51793991 | V44: 37.53368461 | W44: 17.10688853 | X44: 43.08926381 | Y44: 22.266124 | Z44: 49.26592555 | AA44: 28.05712079 | AB44: 56.1288915 | AC44: 34.54774578 | AD44: 63.75011569 | AE44: 41.81291626 | AF44: 72.20897604 | AG44: 49.93532541 | AH44: 81.59303679 | AI44: 59.00624229 | AJ44: 91.99888908 | AK44: 69.12639386 | AL44: 103.5330778 | AM44: 80.40693751 | AN44: 116.3131234 | AO44: 3.510081115e-13
C45: Closing Balance | F45: =E34 -> 1275 | G45: =G43-G44 -> 1282.709773 | H45: =H43-H44 -> 1271.004154 | I45: 1276.820319 | J45: 1262.52793 | K45: 1266.175272 | L45: 1248.989049 | M45: 1250.161693 | N45: 1229.741829 | O45: 1228.100021 | P45: 1204.070576 | Q45: 1199.237134 | R45: 1171.182289 | S45: 1162.73869 | T45: 1130.198619 | U45: 1117.680679 | V45: 1080.146994 | W45: 1063.040105 | X45: 1019.950842 | Y45: 997.6847177 | Z45: 948.4187921 | AA45: 920.3616713 | AB45: 864.2327798 | AC45: 829.6850341 | AD45: 765.9349184 | AE45: 724.1220021 | AF45: 651.9130261 | AG45: 601.9777007 | AH45: 520.3846639 | AI45: 461.3784216 | AJ45: 369.3795325 | AK45: 300.2531387 | AL45: 196.7200609 | AM45: 116.3131234 | AN45: -7.020162229e-12 | AO45: -7.371170341e-12
C46: Interest | G46: =G43*G27 -> 63.75 | H46: 64.13548865 | I46: 63.55020771 | J46: 63.84101595 | K46: 63.12639651 | L46: 63.30876362 | M46: 62.44945245 | N46: 62.50808464 | O46: 61.48709147 | P46: 61.40500103 | Q46: 60.20352882 | R46: 59.9618567 | S46: 58.55911447 | T46: 58.1369345 | U46: 56.50993093 | V46: 55.88403393 | W46: 54.0073497 | X46: 53.15200527 | Y46: 50.99754208 | Z46: 49.88423588 | AA46: 47.42093961 | AB46: 46.01808357 | AC46: 43.21163899 | AD46: 41.4842517 | AE46: 38.29674592 | AF46: 36.20610011 | AG46: 32.5956513 | AH46: 30.09888503 | AI46: 26.01923319 | AJ46: 23.06892108 | AK46: 18.46897663 | AL46: 15.01265693 | AM46: 9.836003045 | AN46: 5.815656169 | AO46: -3.510081115e-13
G48: =G4 -> 1 | H48: 2 | I48: 3 | J48: 4 | K48: 5 | L48: 6 | M48: 7 | N48: 8 | O48: 9 | P48: 10 | Q48: 11 | R48: 12 | S48: 13 | T48: 14 | U48: 15 | V48: 16 | W48: 17 | X48: 18 | Y48: 19 | Z48: 20 | AA48: 21 | AB48: 22 | AC48: 23 | AD48: 24 | AE48: 25 | AF48: 26 | AG48: 27 | AH48: 28 | AI48: 29 | AJ48: 30 | AK48: 31 | AL48: 32 | AM48: 33 | AN48: 34 | AO48: 35
C49: CFADS | G49: =G14 -> 68.5125 | H49: 92.72025 | I49: 70.58329031 | J49: 95.52271956 | K49: 72.71667026 | L49: 98.40989375 | M49: 74.91453162 | N49: 101.3843328 | O49: 77.17882334 | P49: 104.4486743 | Q49: 79.51155327 | R49: 107.6056354 | S49: 81.91478997 | T49: 110.8580158 | U49: 84.3906645 | V49: 114.2086993 | W49: 86.94137233 | X49: 117.6606572 | Y49: 89.56917531 | Z49: 121.2169506 | AA49: 92.27640364 | AB49: 124.8807329 | AC49: 95.06545794 | AD49: 128.6552531 | AE49: 97.9388114 | AF49: 132.5438581 | AG49: 100.899012 | AH49: 136.5499962 | AI49: 103.9486846 | AJ49: 140.6772198 | AK49: 107.0905336 | AL49: 144.9291888 | AM49: 110.327345 | AN49: 149.3096735 | AO49: 113.661989
C50: Debt Service | G50: =G32 -> 56.04022707 | H50: 75.8411073 | I50: 57.73404293 | J50: 78.13340477 | K50: 59.47905438 | L50: 80.49498693 | M50: 61.2768088 | N50: 82.92794791 | O50: 63.12890034 | P50: 85.43444513 | Q50: 65.03697136 | R50: 88.01670124 | S50: 67.00271382 | T50: 90.67700603 | U50: 69.02787084 | V50: 93.41771854 | W50: 71.11423824 | X50: 96.24126908 | Y50: 73.26366609 | Z50: 99.15016144 | AA50: 75.47806039 | AB50: 102.1469751 | AC50: 77.75938477 | AD50: 105.2343674 | AE50: 80.10966217 | AF50: 108.4150761 | AG50: 82.53097671 | AH50: 111.6919218 | AI50: 85.02547549 | AJ50: 115.0678102 | AK50: 87.59537048 | AL50: 118.5457347 | AM50: 90.24294055 | AN50: 122.1287796 | AO50: 0
B52: Monte Carlo Simulation
C53: Random Number - Probability | G53: =RAND() -> 0.5896560628 | H53: =RAND() -> 0.8295428389 | I53: 0.9430003256 | J53: 0.6490810451 | K53: 0.7791608797 | L53: 0.314052628 | M53: 0.6862410308 | N53: 0.8267172671 | O53: 0.8413519883 | P53: 0.5191175351 | Q53: 0.2044120036 | R53: 0.4534932598 | S53: 0.9125939007 | T53: 0.7107634338 | U53: 0.6410836838 | V53: 0.525981851 | W53: 0.1844608706 | X53: 0.1444261466 | Y53: 0.0238364935 | Z53: 0.1613527737 | AA53: 0.2380821246 | AB53: 0.5129444016 | AC53: 0.5839278204 | AD53: 0.1813435522 | AE53: 0.06400528912 | AF53: 0.4181938786 | AG53: 0.4139518678 | AH53: 0.6235263559 | AI53: 0.4282766857 | AJ53: 0.405668173 | AK53: 0.7668936086 | AL53: 0.5434905684 | AM53: 0.3358223108 | AN53: 0.5247719694 | AO53: 0.4320227353
C54: Normal Inverse - Standard Deviations | G54: =_xlfn.NORM.S.INV(G53) -> 0.2266603326 | H54: =_xlfn.NORM.S.INV(H53) -> 0.952360229 | I54: 1.580469664 | J54: 0.3828406627 | K54: 0.7693623369 | L54: -0.4843954372 | M54: 0.4852233245 | N54: 0.9412720429 | O54: 1.000029931 | P54: 0.04793890944 | Q54: -0.8259648928 | R54: -0.1168404111 | S54: 1.35690248 | T54: 0.5556163785 | U54: 0.3613569409 | V54: 0.06517295022 | W54: -0.898494941 | X54: -1.060642736 | Y54: -1.980271878 | Z54: -0.9889133313 | AA54: -0.7124854 | AB54: 0.03245249835 | AC54: 0.2119521573 | AD54: -0.9102567831 | AE54: -1.521994023 | AF54: -0.2065161417 | AG54: -0.217390883 | AH54: 0.3147555174 | AI54: -0.1807632992 | AJ54: -0.2387024123 | AK54: 0.7286549068 | AL54: 0.1092315165 | AM54: -0.4238919412 | AN54: 0.06213407545 | AO54: -0.1712267552
C55: Standard Deviation * Volatility | E55: =E175/100 -> 0.1 | F55: vol | G55: =vol*G54 -> 0.02266603326 | H55: 0.0952360229 | I55: 0.1580469664 | J55: 0.03828406627 | K55: 0.07693623369 | L55: -0.04843954372 | M55: 0.04852233245 | N55: 0.09412720429 | O55: 0.1000029931 | P55: 0.004793890944 | Q55: -0.08259648928 | R55: -0.01168404111 | S55: 0.135690248 | T55: 0.05556163785 | U55: 0.03613569409 | V55: 0.006517295022 | W55: -0.0898494941 | X55: -0.1060642736 | Y55: -0.1980271878 | Z55: -0.09889133313 | AA55: -0.07124854 | AB55: 0.003245249835 | AC55: 0.02119521573 | AD55: -0.09102567831 | AE55: -0.1521994023 | AF55: -0.02065161417 | AG55: -0.0217390883 | AH55: 0.03147555174 | AI55: -0.01807632992 | AJ55: -0.02387024123 | AK55: 0.07286549068 | AL55: 0.01092315165 | AM55: -0.04238919412 | AN55: 0.006213407545 | AO55: -0.01712267552
C56: Mean reversion | E56: =E176/100 -> 0.07 | F56: mr | G56: =mr -> 0.07 | H56: 0.07 | I56: 0.07 | J56: 0.07 | K56: 0.07 | L56: 0.07 | M56: 0.07 | N56: 0.07 | O56: 0.07 | P56: 0.07 | Q56: 0.07 | R56: 0.07 | S56: 0.07 | T56: 0.07 | U56: 0.07 | V56: 0.07 | W56: 0.07 | X56: 0.07 | Y56: 0.07 | Z56: 0.07 | AA56: 0.07 | AB56: 0.07 | AC56: 0.07 | AD56: 0.07 | AE56: 0.07 | AF56: 0.07 | AG56: 0.07 | AH56: 0.07 | AI56: 0.07 | AJ56: 0.07 | AK56: 0.07 | AL56: 0.07 | AM56: 0.07 | AN56: 0.07 | AO56: 0.07
C57: Index with Volatilty and Mean Reversion | F57: 1 | G57: =F57*(1+G55)+(1-F57)*G56 -> 1.022666033 | H57: =G57*(1+H55)+(1-G57)*H56 -> 1.118474057 | I57: 1.286952304 | J57: 1.31613541 | K57: 1.395264433 | L57: 1.30000995 | M57: 1.342088769 | N57: 1.444469619 | O57: 1.557808031 | P57: 1.52622943 | Q57: 1.363332177 | R57: 1.321969696 | S57: 1.478810213 | T57: 1.527458616 | U57: 1.54573229 | V57: 1.517605023 | W57: 1.345016628 | X57: 1.178207252 | Y57: 0.9324156758 | Z57: 0.8449387493 | AA57: 0.7955923845 | AB57: 0.8124828137 | AC57: 0.8428297652 | AD57: 0.7771125306 | AE57: 0.6744385907 | AF57: 0.6832996438 | AG57: 0.6906143575 | AH57: 0.7340088204 | AI57: 0.7393600174 | AJ57: 0.7399561142 | AK57: 0.8120764515 | AL57: 0.8341015342 | AM57: 0.8103575349 | AN57: 0.8286675891 | AO57: 0.8264718516
G59: =G48 -> 1 | H59: =H48 -> 2 | I59: 3 | J59: 4 | K59: 5 | L59: 6 | M59: 7 | N59: 8 | O59: 9 | P59: 10 | Q59: 11 | R59: 12 | S59: 13 | T59: 14 | U59: 15 | V59: 16 | W59: 17 | X59: 18 | Y59: 19 | Z59: 20 | AA59: 21 | AB59: 22 | AC59: 23 | AD59: 24 | AE59: 25 | AF59: 26 | AG59: 27 | AH59: 28 | AI59: 29 | AJ59: 30 | AK59: 31 | AL59: 32 | AM59: 33 | AN59: 34 | AO59: 35
C60: Cash Flow with Volatility | G60: =G12*G57 -> 70.0654066 | H60: 103.7051942 | I60: 90.83732812 | J60: 125.7208337 | K60: 101.4589837 | L60: 127.9338411 | M60: 100.5419515 | N60: 146.4465885 | O60: 120.2297908 | P60: 159.4126406 | Q60: 108.4006591 | R60: 142.2513891 | S60: 121.136428 | T60: 169.3310313 | U60: 130.4453751 | V60: 173.3236957 | W60: 116.9375914 | X60: 138.6286396 | Y60: 83.51570313 | Z60: 102.4208986 | AA60: 73.41440401 | AB60: 101.4634493 | AC60: 80.12399759 | AD60: 99.97960929 | AE60: 66.05371394 | AF60: 90.56717103 | AG60: 69.68230633 | AH60: 100.2289016 | AI60: 76.85550126 | AJ60: 104.0949689 | AK60: 86.96570052 | AL60: 120.8856587 | AM60: 89.40459532 | AN60: 123.7280872 | AO60: 93.9384345
C61: Debt Service | G61: =G50 -> 56.04022707 | H61: =H50 -> 75.8411073 | I61: 57.73404293 | J61: 78.13340477 | K61: 59.47905438 | L61: 80.49498693 | M61: 61.2768088 | N61: 82.92794791 | O61: 63.12890034 | P61: 85.43444513 | Q61: 65.03697136 | R61: 88.01670124 | S61: 67.00271382 | T61: 90.67700603 | U61: 69.02787084 | V61: 93.41771854 | W61: 71.11423824 | X61: 96.24126908 | Y61: 73.26366609 | Z61: 99.15016144 | AA61: 75.47806039 | AB61: 102.1469751 | AC61: 77.75938477 | AD61: 105.2343674 | AE61: 80.10966217 | AF61: 108.4150761 | AG61: 82.53097671 | AH61: 111.6919218 | AI61: 85.02547549 | AJ61: 115.0678102 | AK61: 87.59537048 | AL61: 118.5457347 | AM61: 90.24294055 | AN61: 122.1287796 | AO61: 0
C63: DSCR | E63: =MIN(G63:AO63) -> 0.8245411621 | F63: DSCR | G63: =IF(G61>0.1,G60/G61) -> 1.250269856 | H63: =IF(H61>0.1,H60/H61) -> 1.367400844 | I63: 1.573375491 | J63: 1.609053568 | K63: 1.705793489 | L63: 1.589339237 | M63: 1.640783087 | N63: 1.765949746 | O63: 1.904512674 | P63: 1.865905963 | Q63: 1.666754414 | R63: 1.616186328 | S63: 1.807933158 | T63: 1.867408715 | U63: 1.889749365 | V63: 1.855362113 | W63: 1.644362568 | X63: 1.440428217 | Y63: 1.139933443 | Z63: 1.032987714 | AA63: 0.9726588577 | AB63: 0.9933084087 | AC63: 1.030409356 | AD63: 0.9500661407 | AE63: 0.8245411621 | AF63: 0.8353743248 | AG63: 0.8443169959 | AH63: 0.8973692995 | AI63: 0.903911455 | AJ63: 0.9046402187 | AK63: 0.9928116069 | AL63: 1.019738576 | AM63: 0.9907101294 | AN63: 1.013095256 | AO63: FALSE
C64: Project Life Coverage | E64: =NPV(E27,G60:AO60)/E34 -> 1.436429143 | F64: PLCR
C65: Loan Life Coverage | E65: =NPV(E27,G60:AO60*G22:AO22)/E34 -> 1.423072182 | F65: LLCR
B67: Credit Enhanements
C68: DSCR Lock-up | E68: =E178/100 -> 1.1 | F68: Lockup
C69: Cash Sweep Percent | E69: =E179/100 -> 0.65 | F69: Sweep
C70: DSRA (Percent of DS) | E70: =E180/100 -> 1 | F70: DSRA
B72: Cash Flow Waterfall
G73: =G4 -> 1 | H73: 2 | I73: 3 | J73: 4 | K73: 5 | L73: 6 | M73: 7 | N73: 8 | O73: 9 | P73: 10 | Q73: 11 | R73: 12 | S73: 13 | T73: 14 | U73: 15 | V73: 16 | W73: 17 | X73: 18 | Y73: 19 | Z73: 20 | AA73: 21 | AB73: 22 | AC73: 23 | AD73: 24 | AE73: 25 | AF73: 26 | AG73: 27 | AH73: 28 | AI73: 29 | AJ73: 30 | AK73: 31 | AL73: 32 | AM73: 33 | AN73: 34 | AO73: 35
C74: Cash Flow Before Credit Enhancements
D75: Cash Flow | G75: =G60 -> 70.0654066 | H75: =H60 -> 103.7051942 | I75: 90.83732812 | J75: 125.7208337 | K75: 101.4589837 | L75: 127.9338411 | M75: 100.5419515 | N75: 146.4465885 | O75: 120.2297908 | P75: 159.4126406 | Q75: 108.4006591 | R75: 142.2513891 | S75: 121.136428 | T75: 169.3310313 | U75: 130.4453751 | V75: 173.3236957 | W75: 116.9375914 | X75: 138.6286396 | Y75: 83.51570313 | Z75: 102.4208986 | AA75: 73.41440401 | AB75: 101.4634493 | AC75: 80.12399759 | AD75: 99.97960929 | AE75: 66.05371394 | AF75: 90.56717103 | AG75: 69.68230633 | AH75: 100.2289016 | AI75: 76.85550126 | AJ75: 104.0949689 | AK75: 86.96570052 | AL75: 120.8856587 | AM75: 89.40459532 | AN75: 123.7280872 | AO75: 93.9384345
D76: Less: Scheduled Debt Service adjusted for Sweep | G76: =G141+G144 -> 56.04022707 | H76: =H141+H144 -> 75.44033798 | I76: 56.48916545 | J76: 75.82892488 | K76: 55.62983887 | L76: 75.21475123 | M76: 54.36227391 | N76: 74.57276647 | O76: 52.51928085 | P76: 72.68624638 | Q76: 49.55408811 | R76: 70.68519107 | S76: 47.43176211 | T76: 68.77647029 | U76: 43.94838503 | V76: 65.59488749 | W76: 39.88198631 | X76: 62.57456639 | Y76: 37.21974502 | Z76: 61.67358955 | AA76: 36.77459741 | AB76: 62.32686141 | AC76: 36.76767225 | AD76: 0 | AE76: 0 | AF76: 0 | AG76: 0 | AH76: 0 | AI76: 0 | AJ76: 0 | AK76: 0 | AL76: 0 | AM76: 0 | AN76: 0 | AO76: 0
D77: Less: Interest on Default | G77: =G137 -> 0 | H77: =H137 -> 0 | I77: 0 | J77: 0 | K77: 0 | L77: 0 | M77: 0 | N77: 0 | O77: 0 | P77: 0 | Q77: 0 | R77: 0 | S77: 0 | T77: 0 | U77: 0 | V77: 0 | W77: 0 | X77: 0 | Y77: 0 | Z77: 0 | AA77: 0 | AB77: 0 | AC77: 0 | AD77: 0 | AE77: 0 | AF77: 0 | AG77: 0 | AH77: 0 | AI77: 0 | AJ77: 0 | AK77: 0 | AL77: 0 | AM77: 0 | AN77: 0 | AO77: 0
D78: DSCR from Scheduled | G78: =IFERROR(G75/G76,FALSE) -> 1.250269856 | H78: =IFERROR(H75/H76,FALSE) -> 1.374665026 | I78: 1.608048683 | J78: 1.65795353 | K78: 1.823823074 | L78: 1.700914236 | M78: 1.849480242 | N78: 1.963807908 | O78: 2.289250516 | P78: 2.193160997 | Q78: 2.187522023 | R78: 2.012463813 | S78: 2.553909503 | T78: 2.462048875 | U78: 2.968149455 | V78: 2.642335437 | W78: 2.932090456 | X78: 2.215415106 | Y78: 2.243854789 | Z78: 1.660693003 | AA78: 1.996334676 | AB78: 1.627924894 | AC78: 2.179196905 | AD78: FALSE | AE78: FALSE | AF78: FALSE | AG78: FALSE | AH78: FALSE | AI78: FALSE | AJ78: FALSE | AK78: FALSE | AL78: FALSE | AM78: FALSE | AN78: FALSE | AO78: FALSE
D79: Cash Flow After Scheduled Debt Service | G79: =G75-G76-G77 -> 14.02517954 | H79: 28.26485618 | I79: 34.34816266 | J79: 49.89190883 | K79: 45.82914484 | L79: 52.71908986 | M79: 46.1796776 | N79: 71.87382206 | O79: 67.71050994 | P79: 86.72639422 | Q79: 58.84657094 | R79: 71.56619807 | S79: 73.70466589 | T79: 100.554561 | U79: 86.49699004 | V79: 107.7288082 | W79: 77.05560511 | X79: 76.05407325 | Y79: 46.2959581 | Z79: 40.74730907 | AA79: 36.6398066 | AB79: 39.13658785 | AC79: 43.35632534 | AD79: 99.97960929 | AE79: 66.05371394 | AF79: 90.56717103 | AG79: 69.68230633 | AH79: 100.2289016 | AI79: 76.85550126 | AJ79: 104.0949689 | AK79: 86.96570052 | AL79: 120.8856587 | AM79: 89.40459532 | AN79: 123.7280872 | AO79: 93.9384345
D80: DSCR Covenant | E80: =E68 -> 1.1 | G80: =$E$80 -> 1.1 | H80: =$E$80 -> 1.1 | I80: 1.1 | J80: 1.1 | K80: 1.1 | L80: 1.1 | M80: 1.1 | N80: 1.1 | O80: 1.1 | P80: 1.1 | Q80: 1.1 | R80: 1.1 | S80: 1.1 | T80: 1.1 | U80: 1.1 | V80: 1.1 | W80: 1.1 | X80: 1.1 | Y80: 1.1 | Z80: 1.1 | AA80: 1.1 | AB80: 1.1 | AC80: 1.1 | AD80: 1.1 | AE80: 1.1 | AF80: 1.1 | AG80: 1.1 | AH80: 1.1 | AI80: 1.1 | AJ80: 1.1 | AK80: 1.1 | AL80: 1.1 | AM80: 1.1 | AN80: 1.1 | AO80: 1.1
D81: Covenant Violated | G81: =G78<=G80 -> FALSE | H81: =H78<=H80 -> FALSE | I81: FALSE | J81: FALSE | K81: FALSE | L81: FALSE | M81: FALSE | N81: FALSE | O81: FALSE | P81: FALSE | Q81: FALSE | R81: FALSE | S81: FALSE | T81: FALSE | U81: FALSE | V81: FALSE | W81: FALSE | X81: FALSE | Y81: FALSE | Z81: FALSE | AA81: FALSE | AB81: FALSE | AC81: FALSE | AD81: FALSE | AE81: FALSE | AF81: FALSE | AG81: FALSE | AH81: FALSE | AI81: FALSE | AJ81: FALSE | AK81: FALSE | AL81: FALSE | AM81: FALSE | AN81: FALSE | AO81: FALSE
C83: Part 1: Dividend Covenant
D84: Less:Deposit to Lockup Reserve Account with MAX for Positive | G84: =MAX(G81*G79,0) -> 0 | H84: =MAX(H81*H79,0) -> 0 | I84: 0 | J84: 0 | K84: 0 | L84: 0 | M84: 0 | N84: 0 | O84: 0 | P84: 0 | Q84: 0 | R84: 0 | S84: 0 | T84: 0 | U84: 0 | V84: 0 | W84: 0 | X84: 0 | Y84: 0 | Z84: 0 | AA84: 0 | AB84: 0 | AC84: 0 | AD84: 0 | AE84: 0 | AF84: 0 | AG84: 0 | AH84: 0 | AI84: 0 | AJ84: 0 | AK84: 0 | AL84: 0 | AM84: 0 | AN84: 0 | AO84: 0
D85: Available to Withdraw - MAX to test for Zero | G85: =MAX(G79-G84,0) -> 14.02517954 | H85: =MAX(H79-H84,0) -> 28.26485618 | I85: 34.34816266 | J85: 49.89190883 | K85: 45.82914484 | L85: 52.71908986 | M85: 46.1796776 | N85: 71.87382206 | O85: 67.71050994 | P85: 86.72639422 | Q85: 58.84657094 | R85: 71.56619807 | S85: 73.70466589 | T85: 100.554561 | U85: 86.49699004 | V85: 107.7288082 | W85: 77.05560511 | X85: 76.05407325 | Y85: 46.2959581 | Z85: 40.74730907 | AA85: 36.6398066 | AB85: 39.13658785 | AC85: 43.35632534 | AD85: 99.97960929 | AE85: 66.05371394 | AF85: 90.56717103 | AG85: 69.68230633 | AH85: 100.2289016 | AI85: 76.85550126 | AJ85: 104.0949689 | AK85: 86.96570052 | AL85: 120.8856587 | AM85: 89.40459532 | AN85: 123.7280872 | AO85: 93.9384345
D86: Add: Withdrawl from Reserve Account - MIN with Balance Below | G86: =MIN(G85,G119) -> 0 | H86: 0 | I86: 0 | J86: 0 | K86: 0 | L86: 0 | M86: 0 | N86: 0 | O86: 0 | P86: 0 | Q86: 0 | R86: 0 | S86: 0 | T86: 0 | U86: 0 | V86: 0 | W86: 0 | X86: 0 | Y86: 0 | Z86: 0 | AA86: 0 | AB86: 0 | AC86: 0 | AD86: 0 | AE86: 0 | AF86: 0 | AG86: 0 | AH86: 0 | AI86: 0 | AJ86: 0 | AK86: 0 | AL86: 0 | AM86: 0 | AN86: 0 | AO86: 0
D87: Cash Flow after Reserve Account | G87: =G79-G84+G86 -> 14.02517954 | H87: =H79-H84+H86 -> 28.26485618 | I87: 34.34816266 | J87: 49.89190883 | K87: 45.82914484 | L87: 52.71908986 | M87: 46.1796776 | N87: 71.87382206 | O87: 67.71050994 | P87: 86.72639422 | Q87: 58.84657094 | R87: 71.56619807 | S87: 73.70466589 | T87: 100.554561 | U87: 86.49699004 | V87: 107.7288082 | W87: 77.05560511 | X87: 76.05407325 | Y87: 46.2959581 | Z87: 40.74730907 | AA87: 36.6398066 | AB87: 39.13658785 | AC87: 43.35632534 | AD87: 99.97960929 | AE87: 66.05371394 | AF87: 90.56717103 | AG87: 69.68230633 | AH87: 100.2289016 | AI87: 76.85550126 | AJ87: 104.0949689 | AK87: 86.96570052 | AL87: 120.8856587 | AM87: 89.40459532 | AN87: 123.7280872 | AO87: 93.9384345
C89: Part 2: Use of DSRA Balance
D90: DSRA Balance Required | F90: =SUM(OFFSET(F32,0,1,1,2)*$E$70) -> 131.8813344 | G90: =SUM(OFFSET(G32,0,1,1,2)*$E$70) -> 133.5751502 | H90: =SUM(OFFSET(H32,0,1,1,2)*$E$70) -> 135.8674477 | I90: =SUM(OFFSET(I32,0,1,1,2)*$E$70) -> 137.6124591 | J90: =SUM(OFFSET(J32,0,1,1,2)*$E$70) -> 139.9740413 | K90: =SUM(OFFSET(K32,0,1,1,2)*$E$70) -> 141.7717957 | L90: =SUM(OFFSET(L32,0,1,1,2)*$E$70) -> 144.2047567 | M90: =SUM(OFFSET(M32,0,1,1,2)*$E$70) -> 146.0568482 | N90: =SUM(OFFSET(N32,0,1,1,2)*$E$70) -> 148.5633455 | O90: =SUM(OFFSET(O32,0,1,1,2)*$E$70) -> 150.4714165 | P90: =SUM(OFFSET(P32,0,1,1,2)*$E$70) -> 153.0536726 | Q90: =SUM(OFFSET(Q32,0,1,1,2)*$E$70) -> 155.0194151 | R90: =SUM(OFFSET(R32,0,1,1,2)*$E$70) -> 157.6797198 | S90: =SUM(OFFSET(S32,0,1,1,2)*$E$70) -> 159.7048769 | T90: =SUM(OFFSET(T32,0,1,1,2)*$E$70) -> 162.4455894 | U90: =SUM(OFFSET(U32,0,1,1,2)*$E$70) -> 164.5319568 | V90: =SUM(OFFSET(V32,0,1,1,2)*$E$70) -> 167.3555073 | W90: =SUM(OFFSET(W32,0,1,1,2)*$E$70) -> 169.5049352 | X90: =SUM(OFFSET(X32,0,1,1,2)*$E$70) -> 172.4138275 | Y90: =SUM(OFFSET(Y32,0,1,1,2)*$E$70) -> 174.6282218 | Z90: =SUM(OFFSET(Z32,0,1,1,2)*$E$70) -> 177.6250355 | AA90: =SUM(OFFSET(AA32,0,1,1,2)*$E$70) -> 179.9063598 | AB90: =SUM(OFFSET(AB32,0,1,1,2)*$E$70) -> 182.9937522 | AC90: =SUM(OFFSET(AC32,0,1,1,2)*$E$70) -> 185.3440296 | AD90: =SUM(OFFSET(AD32,0,1,1,2)*$E$70) -> 188.5247383 | AE90: =SUM(OFFSET(AE32,0,1,1,2)*$E$70) -> 190.9460529 | AF90: =SUM(OFFSET(AF32,0,1,1,2)*$E$70) -> 194.2228985 | AG90: =SUM(OFFSET(AG32,0,1,1,2)*$E$70) -> 196.7173973 | AH90: =SUM(OFFSET(AH32,0,1,1,2)*$E$70) -> 200.0932856 | AI90: =SUM(OFFSET(AI32,0,1,1,2)*$E$70) -> 202.6631806 | AJ90: =SUM(OFFSET(AJ32,0,1,1,2)*$E$70) -> 206.1411052 | AK90: =SUM(OFFSET(AK32,0,1,1,2)*$E$70) -> 208.7886753 | AL90: =SUM(OFFSET(AL32,0,1,1,2)*$E$70) -> 212.3717201 | AM90: =SUM(OFFSET(AM32,0,1,1,2)*$E$70) -> 122.1287796 | AN90: =SUM(OFFSET(AN32,0,1,1,2)*$E$70) -> 0 | AO90: =SUM(OFFSET(AO32,0,1,1,2)*$E$70) -> 0
D91: Net Required Deposit (vs Opening Balance) | G91: =G90-G125 -> 1.693815863 | H91: 2.292297468 | I91: 1.745011448 | J91: 2.361582159 | K91: 1.797754419 | L91: 2.43296098 | M91: 1.852091546 | N91: 2.506497225 | O91: 1.908071013 | P91: 2.582256104 | Q91: 1.965742459 | R91: 2.660304795 | S91: 2.025157025 | T91: 2.740712507 | U91: 2.086367396 | V91: 2.823550543 | W91: 2.149427851 | X91: 2.908892358 | Y91: 2.214394307 | Z91: 2.996813629 | AA91: 2.281324375 | AB91: 3.087392321 | AC91: 2.350277405 | AD91: 3.180708754 | AE91: 2.421314539 | AF91: 3.276845676 | AG91: 2.494498771 | AH91: 3.375888337 | AI91: 2.569894997 | AJ91: 3.477924562 | AK91: 2.647570073 | AL91: 3.583044832 | AM91: -90.24294055 | AN91: -122.1287796 | AO91: 0
D92: Less: Addition to DSRA (MAX for with Available Cash Flow) | G92: =MIN(MAX(G87,0),G91) -> 1.693815863 | H92: =MIN(MAX(H87,0),H91) -> 2.292297468 | I92: 1.745011448 | J92: 2.361582159 | K92: 1.797754419 | L92: 2.43296098 | M92: 1.852091546 | N92: 2.506497225 | O92: 1.908071013 | P92: 2.582256104 | Q92: 1.965742459 | R92: 2.660304795 | S92: 2.025157025 | T92: 2.740712507 | U92: 2.086367396 | V92: 2.823550543 | W92: 2.149427851 | X92: 2.908892358 | Y92: 2.214394307 | Z92: 2.996813629 | AA92: 2.281324375 | AB92: 3.087392321 | AC92: 2.350277405 | AD92: 3.180708754 | AE92: 2.421314539 | AF92: 3.276845676 | AG92: 2.494498771 | AH92: 3.375888337 | AI92: 2.569894997 | AJ92: 3.477924562 | AK92: 2.647570073 | AL92: 3.583044832 | AM92: -90.24294055 | AN92: -122.1287796 | AO92: 0
D93: Withdrawls for for Negative Cash Flow (Min and Max with Bal) | G93: =MIN(MAX(-G87,0),G125) -> 0 | H93: 0 | I93: 0 | J93: =MIN(MAX(-J87,0),J125) -> 0 | K93: 0 | L93: 0 | M93: 0 | N93: 0 | O93: 0 | P93: 0 | Q93: 0 | R93: 0 | S93: 0 | T93: 0 | U93: 0 | V93: 0 | W93: 0 | X93: 0 | Y93: 0 | Z93: 0 | AA93: 0 | AB93: 0 | AC93: 0 | AD93: 0 | AE93: 0 | AF93: 0 | AG93: 0 | AH93: 0 | AI93: 0 | AJ93: 0 | AK93: 0 | AL93: 0 | AM93: 0 | AN93: 0 | AO93: 0
D94: Cash Flow After DSRA | G94: =G87-G92+G93 -> 12.33136367 | H94: 25.97255871 | I94: 32.60315121 | J94: 47.53032667 | K94: 44.03139042 | L94: 50.28612888 | M94: 44.32758605 | N94: 69.36732483 | O94: 65.80243893 | P94: 84.14413812 | Q94: 56.88082848 | R94: 68.90589328 | S94: 71.67950887 | T94: 97.81384848 | U94: 84.41062265 | V94: 104.9052577 | W94: 74.90617726 | X94: 73.14518089 | Y94: 44.0815638 | Z94: 37.75049544 | AA94: 34.35848223 | AB94: 36.04919553 | AC94: 41.00604794 | AD94: 96.79890054 | AE94: 63.6323994 | AF94: 87.29032535 | AG94: 67.18780756 | AH94: 96.8530133 | AI94: 74.28560626 | AJ94: 100.6170444 | AK94: 84.31813045 | AL94: 117.3026139 | AM94: 179.6475359 | AN94: 245.8568668 | AO94: 93.9384345
C96: Part 3: Cash Sweep with Positive Cash Flow
D97: Cash Sweep Percent | E97: =E69 -> 0.65 | G97: =$E$97 -> 0.65 | H97: =$E$97 -> 0.65 | I97: 0.65 | J97: 0.65 | K97: 0.65 | L97: 0.65 | M97: 0.65 | N97: 0.65 | O97: 0.65 | P97: 0.65 | Q97: 0.65 | R97: 0.65 | S97: 0.65 | T97: 0.65 | U97: 0.65 | V97: 0.65 | W97: 0.65 | X97: 0.65 | Y97: 0.65 | Z97: 0.65 | AA97: 0.65 | AB97: 0.65 | AC97: 0.65 | AD97: 0.65 | AE97: 0.65 | AF97: 0.65 | AG97: 0.65 | AH97: 0.65 | AI97: 0.65 | AJ97: 0.65 | AK97: 0.65 | AL97: 0.65 | AM97: 0.65 | AN97: 0.65 | AO97: 0.65
D98: Cash Sweep | G98: =MIN(G146,MAX(G94*G97,0)) -> 8.015386387 | H98: =MIN(H146,MAX(H94*H97,0)) -> 16.88216316 | I98: 21.19204829 | J98: 30.89471233 | K98: 28.62040378 | L98: 32.68598377 | M98: 28.81293093 | N98: 45.08876114 | O98: 42.7715853 | P98: 54.69368978 | Q98: 36.97253851 | R98: 44.78883063 | S98: 46.59168076 | T98: 63.57900151 | U98: 54.86690472 | V98: 68.18841748 | W98: 48.68901522 | X98: 47.54436758 | Y98: 28.65301647 | Z98: 24.53782204 | AA98: 22.33301345 | AB98: 23.43197709 | AC98: 9.850783736 | AD98: 0 | AE98: 0 | AF98: 0 | AG98: 0 | AH98: 0 | AI98: 0 | AJ98: 0 | AK98: 0 | AL98: 0 | AM98: 0 | AN98: 0 | AO98: 0
D99: Cash Flow after Sweep | G99: =G94-G98 -> 4.315977285 | H99: =H94-H98 -> 9.090395548 | I99: 11.41110293 | J99: 16.63561433 | K99: 15.41098665 | L99: 17.60014511 | M99: 15.51465512 | N99: 24.27856369 | O99: 23.03085362 | P99: 29.45044834 | Q99: 19.90828997 | R99: 24.11706265 | S99: 25.0878281 | T99: 34.23484697 | U99: 29.54371793 | V99: 36.71684018 | W99: 26.21716204 | X99: 25.60081331 | Y99: 15.42854733 | Z99: 13.2126734 | AA99: 12.02546878 | AB99: 12.61721844 | AC99: 31.1552642 | AD99: 96.79890054 | AE99: 63.6323994 | AF99: 87.29032535 | AG99: 67.18780756 | AH99: 96.8530133 | AI99: 74.28560626 | AJ99: 100.6170444 | AK99: 84.31813045 | AL99: 117.3026139 | AM99: 179.6475359 | AN99: 245.8568668 | AO99: 93.9384345
C101: Part 4: Default after Credit Protections
D102: Add: Default on Debt (Max for Negative Cash Flow) | G102: =MAX(-G94,0) -> 0 | H102: 0 | I102: 0 | J102: 0 | K102: 0 | L102: 0 | M102: 0 | N102: 0 | O102: 0 | P102: 0 | Q102: 0 | R102: 0 | S102: 0 | T102: 0 | U102: 0 | V102: 0 | W102: 0 | X102: 0 | Y102: 0 | Z102: 0 | AA102: 0 | AB102: 0 | AC102: 0 | AD102: 0 | AE102: 0 | AF102: 0 | AG102: 0 | AH102: 0 | AI102: 0 | AJ102: 0 | AK102: 0 | AL102: 0 | AM102: 0 | AN102: 0 | AO102: 0
D103: Less: Repayment of Default (Min and Max with Positive Cash) | G103: =MIN(MAX(G94,0),G133) -> 0 | H103: 0 | I103: 0 | J103: 0 | K103: 0 | L103: 0 | M103: 0 | N103: 0 | O103: 0 | P103: 0 | Q103: 0 | R103: 0 | S103: 0 | T103: 0 | U103: 0 | V103: 0 | W103: 0 | X103: 0 | Y103: 0 | Z103: 0 | AA103: 0 | AB103: 0 | AC103: 0 | AD103: 0 | AE103: 0 | AF103: 0 | AG103: 0 | AH103: 0 | AI103: 0 | AJ103: 0 | AK103: 0 | AL103: 0 | AM103: 0 | AN103: 0 | AO103: 0
D104: Cash Flow after Default | G104: =G99+G102-G103 -> 4.315977285 | H104: =H99+H102-H103 -> 9.090395548 | I104: 11.41110293 | J104: 16.63561433 | K104: 15.41098665 | L104: 17.60014511 | M104: 15.51465512 | N104: 24.27856369 | O104: 23.03085362 | P104: 29.45044834 | Q104: 19.90828997 | R104: 24.11706265 | S104: 25.0878281 | T104: 34.23484697 | U104: 29.54371793 | V104: 36.71684018 | W104: 26.21716204 | X104: 25.60081331 | Y104: 15.42854733 | Z104: 13.2126734 | AA104: 12.02546878 | AB104: 12.61721844 | AC104: 31.1552642 | AD104: 96.79890054 | AE104: 63.6323994 | AF104: 87.29032535 | AG104: 67.18780756 | AH104: 96.8530133 | AI104: 74.28560626 | AJ104: 100.6170444 | AK104: 84.31813045 | AL104: 117.3026139 | AM104: 179.6475359 | AN104: 245.8568668 | AO104: 93.9384345
D106: Equity Contribution (Less DSRA) | F106: =F39-F90 -> -356.8813344
D107: Equity Cash Flow | F107: =F104+F106 -> -356.8813344 | G107: =G104+G106 -> 4.315977285 | H107: 9.090395548 | I107: 11.41110293 | J107: 16.63561433 | K107: 15.41098665 | L107: 17.60014511 | M107: 15.51465512 | N107: 24.27856369 | O107: 23.03085362 | P107: 29.45044834 | Q107: 19.90828997 | R107: 24.11706265 | S107: 25.0878281 | T107: 34.23484697 | U107: 29.54371793 | V107: 36.71684018 | W107: 26.21716204 | X107: 25.60081331 | Y107: 15.42854733 | Z107: 13.2126734 | AA107: 12.02546878 | AB107: 12.61721844 | AC107: 31.1552642 | AD107: 96.79890054 | AE107: 63.6323994 | AF107: 87.29032535 | AG107: 67.18780756 | AH107: 96.8530133 | AI107: 74.28560626 | AJ107: 100.6170444 | AK107: 84.31813045 | AL107: 117.3026139 | AM107: 179.6475359 | AN107: 245.8568668 | AO107: 93.9384345
D109: Equity IRR | E109: =IFERROR(IRR(F107:AO107),FALSE) -> 0.07386609687
C111: Accumulated Default from Below
D112: Default Balance at End | E112: =AO136 -> 0 | F112: Default End
D113: PV Factor with Interest Rate | E113: =1/(1+E27)^35 -> 0.1812902854
D114: PV of Default | E114: =E112*E113 -> 0 | F114: PV default
D115: Default as Percent of Debt | E115: =E114/E34 -> 0 | F115: Default Pct
B117: Accounts from Waterfall
C118: Lock-up Reserve Account
D119: Opening Balance | G119: =F122 -> 0 | H119: =G122 -> 0 | I119: 0 | J119: 0 | K119: 0 | L119: 0 | M119: 0 | N119: 0 | O119: 0 | P119: 0 | Q119: 0 | R119: 0 | S119: 0 | T119: 0 | U119: 0 | V119: 0 | W119: 0 | X119: 0 | Y119: 0 | Z119: 0 | AA119: 0 | AB119: 0 | AC119: 0 | AD119: 0 | AE119: 0 | AF119: 0 | AG119: 0 | AH119: 0 | AI119: 0 | AJ119: 0 | AK119: 0 | AL119: 0 | AM119: 0 | AN119: 0 | AO119: 0
D120: Add: Deposit | G120: =G84 -> 0 | H120: 0 | I120: 0 | J120: 0 | K120: 0 | L120: 0 | M120: 0 | N120: 0 | O120: 0 | P120: 0 | Q120: 0 | R120: 0 | S120: 0 | T120: 0 | U120: 0 | V120: 0 | W120: 0 | X120: 0 | Y120: 0 | Z120: 0 | AA120: 0 | AB120: 0 | AC120: 0 | AD120: 0 | AE120: 0 | AF120: 0 | AG120: 0 | AH120: 0 | AI120: 0 | AJ120: 0 | AK120: 0 | AL120: 0 | AM120: 0 | AN120: 0 | AO120: 0
D121: Less: Withdrawl | G121: =G86 -> 0 | H121: 0 | I121: 0 | J121: 0 | K121: 0 | L121: 0 | M121: 0 | N121: 0 | O121: 0 | P121: 0 | Q121: 0 | R121: 0 | S121: 0 | T121: 0 | U121: 0 | V121: 0 | W121: 0 | X121: 0 | Y121: 0 | Z121: 0 | AA121: 0 | AB121: 0 | AC121: 0 | AD121: 0 | AE121: 0 | AF121: 0 | AG121: 0 | AH121: 0 | AI121: 0 | AJ121: 0 | AK121: 0 | AL121: 0 | AM121: 0 | AN121: 0 | AO121: 0
D122: Closing Balance | G122: =G119+G120-G121 -> 0 | H122: =H119+H120-H121 -> 0 | I122: 0 | J122: 0 | K122: 0 | L122: 0 | M122: 0 | N122: 0 | O122: 0 | P122: 0 | Q122: 0 | R122: 0 | S122: 0 | T122: 0 | U122: 0 | V122: 0 | W122: 0 | X122: 0 | Y122: 0 | Z122: 0 | AA122: 0 | AB122: 0 | AC122: 0 | AD122: 0 | AE122: 0 | AF122: 0 | AG122: 0 | AH122: 0 | AI122: 0 | AJ122: 0 | AK122: 0 | AL122: 0 | AM122: 0 | AN122: 0 | AO122: 0
C124: DSRA Account
D125: Opening Balance | F125: =E130 -> 0 | G125: =F130 -> 131.8813344 | H125: 133.5751502 | I125: 135.8674477 | J125: 137.6124591 | K125: 139.9740413 | L125: 141.7717957 | M125: 144.2047567 | N125: 146.0568482 | O125: 148.5633455 | P125: 150.4714165 | Q125: 153.0536726 | R125: 155.0194151 | S125: 157.6797198 | T125: 159.7048769 | U125: 162.4455894 | V125: 164.5319568 | W125: 167.3555073 | X125: 169.5049352 | Y125: 172.4138275 | Z125: 174.6282218 | AA125: 177.6250355 | AB125: 179.9063598 | AC125: 182.9937522 | AD125: 185.3440296 | AE125: 188.5247383 | AF125: 190.9460529 | AG125: 194.2228985 | AH125: 196.7173973 | AI125: 200.0932856 | AJ125: 202.6631806 | AK125: 206.1411052 | AL125: 208.7886753 | AM125: 212.3717201 | AN125: 122.1287796 | AO125: 0
D126: Add: Initial Deposit at COD | F126: =F90 -> 131.8813344
D127: Add: Scheduled Changes Positive | G127: =G92 -> 1.693815863 | H127: =H92 -> 2.292297468 | I127: 1.745011448 | J127: 2.361582159 | K127: 1.797754419 | L127: 2.43296098 | M127: 1.852091546 | N127: 2.506497225 | O127: 1.908071013 | P127: 2.582256104 | Q127: 1.965742459 | R127: 2.660304795 | S127: 2.025157025 | T127: 2.740712507 | U127: 2.086367396 | V127: 2.823550543 | W127: 2.149427851 | X127: 2.908892358 | Y127: 2.214394307 | Z127: 2.996813629 | AA127: 2.281324375 | AB127: 3.087392321 | AC127: 2.350277405 | AD127: 3.180708754 | AE127: 2.421314539 | AF127: 3.276845676 | AG127: 2.494498771 | AH127: 3.375888337 | AI127: 2.569894997 | AJ127: 3.477924562 | AK127: 2.647570073 | AL127: 3.583044832 | AM127: -90.24294055 | AN127: -122.1287796 | AO127: 0
D128: Less: Scheduled Withdrawls
D129: Less: Withdrawls for Deficient Cash | G129: =G93 -> 0 | H129: 0 | I129: 0 | J129: 0 | K129: 0 | L129: 0 | M129: 0 | N129: 0 | O129: 0 | P129: 0 | Q129: 0 | R129: 0 | S129: 0 | T129: 0 | U129: 0 | V129: 0 | W129: 0 | X129: 0 | Y129: 0 | Z129: 0 | AA129: 0 | AB129: 0 | AC129: 0 | AD129: 0 | AE129: 0 | AF129: 0 | AG129: 0 | AH129: 0 | AI129: 0 | AJ129: 0 | AK129: 0 | AL129: 0 | AM129: 0 | AN129: 0 | AO129: 0
D130: Closing Balance | F130: =F125+F126+F127-F129-F128 -> 131.8813344 | G130: =G125+G126+G127-G129-G128 -> 133.5751502 | H130: 135.8674477 | I130: 137.6124591 | J130: 139.9740413 | K130: 141.7717957 | L130: 144.2047567 | M130: 146.0568482 | N130: 148.5633455 | O130: 150.4714165 | P130: 153.0536726 | Q130: 155.0194151 | R130: 157.6797198 | S130: 159.7048769 | T130: 162.4455894 | U130: 164.5319568 | V130: 167.3555073 | W130: 169.5049352 | X130: 172.4138275 | Y130: 174.6282218 | Z130: 177.6250355 | AA130: 179.9063598 | AB130: 182.9937522 | AC130: 185.3440296 | AD130: 188.5247383 | AE130: 190.9460529 | AF130: 194.2228985 | AG130: 196.7173973 | AH130: 200.0932856 | AI130: 202.6631806 | AJ130: 206.1411052 | AK130: 208.7886753 | AL130: 212.3717201 | AM130: 122.1287796 | AN130: 0 | AO130: 0
C132: Default Account
D133: Opening Balance | F133: =E136 -> 0 | G133: =F136 -> 0 | H133: =G136 -> 0 | I133: 0 | J133: 0 | K133: 0 | L133: 0 | M133: 0 | N133: 0 | O133: 0 | P133: 0 | Q133: 0 | R133: 0 | S133: 0 | T133: 0 | U133: 0 | V133: 0 | W133: 0 | X133: 0 | Y133: 0 | Z133: 0 | AA133: 0 | AB133: 0 | AC133: 0 | AD133: 0 | AE133: 0 | AF133: 0 | AG133: 0 | AH133: 0 | AI133: 0 | AJ133: 0 | AK133: 0 | AL133: 0 | AM133: 0 | AN133: 0 | AO133: 0
D134: Add: Default | G134: =G102 -> 0 | H134: =H102 -> 0 | I134: 0 | J134: 0 | K134: 0 | L134: 0 | M134: 0 | N134: 0 | O134: 0 | P134: 0 | Q134: 0 | R134: 0 | S134: 0 | T134: 0 | U134: 0 | V134: 0 | W134: 0 | X134: 0 | Y134: 0 | Z134: 0 | AA134: 0 | AB134: 0 | AC134: 0 | AD134: 0 | AE134: 0 | AF134: 0 | AG134: 0 | AH134: 0 | AI134: 0 | AJ134: 0 | AK134: 0 | AL134: 0 | AM134: 0 | AN134: 0 | AO134: 0
D135: Less: Repayment of Default | G135: =G103 -> 0 | H135: =H103 -> 0 | I135: 0 | J135: 0 | K135: 0 | L135: 0 | M135: 0 | N135: 0 | O135: 0 | P135: 0 | Q135: 0 | R135: 0 | S135: 0 | T135: 0 | U135: 0 | V135: 0 | W135: 0 | X135: 0 | Y135: 0 | Z135: 0 | AA135: 0 | AB135: 0 | AC135: 0 | AD135: 0 | AE135: 0 | AF135: 0 | AG135: 0 | AH135: 0 | AI135: 0 | AJ135: 0 | AK135: 0 | AL135: 0 | AM135: 0 | AN135: 0 | AO135: 0
D136: Closing Balance | G136: =G133+G134-G135 -> 0 | H136: =H133+H134-H135 -> 0 | I136: 0 | J136: 0 | K136: 0 | L136: 0 | M136: 0 | N136: 0 | O136: 0 | P136: 0 | Q136: 0 | R136: 0 | S136: 0 | T136: 0 | U136: 0 | V136: 0 | W136: 0 | X136: 0 | Y136: 0 | Z136: 0 | AA136: 0 | AB136: 0 | AC136: 0 | AD136: 0 | AE136: 0 | AF136: 0 | AG136: 0 | AH136: 0 | AI136: 0 | AJ136: 0 | AK136: 0 | AL136: 0 | AM136: 0 | AN136: 0 | AO136: 0
D137: Interest on Default | E137: =$E$27 -> 0.05 | G137: =$E$137*G133 -> 0 | H137: =$E$137*H133 -> 0 | I137: 0 | J137: 0 | K137: 0 | L137: 0 | M137: 0 | N137: 0 | O137: 0 | P137: 0 | Q137: 0 | R137: 0 | S137: 0 | T137: 0 | U137: 0 | V137: 0 | W137: 0 | X137: 0 | Y137: 0 | Z137: 0 | AA137: 0 | AB137: 0 | AC137: 0 | AD137: 0 | AE137: 0 | AF137: 0 | AG137: 0 | AH137: 0 | AI137: 0 | AJ137: 0 | AK137: 0 | AL137: 0 | AM137: 0 | AN137: 0 | AO137: 0
C139: Debt Balance with Cash Sweep
D140: Opening Balance | F140: =E143 -> 0 | G140: =F143 -> 1275 | H140: 1274.694387 | I140: 1246.106605 | J140: 1230.730721 | K140: 1185.54362 | L140: 1160.570558 | M140: 1110.698351 | N140: 1083.058064 | O140: 1017.54944 | P140: 973.1360455 | Q140: 894.4129116 | R140: 852.6069306 | S140: 779.7632554 | T140: 724.7279753 | U140: 628.6089023 | V140: 561.2240576 | W140: 455.5019555 | X140: 389.7060518 | Y140: 299.0724204 | Z140: 248.1532799 | AA140: 174.3495323 | AB140: 123.9593981 | AC140: 44.39852951 | AD140: 0 | AE140: 0 | AF140: 0 | AG140: 0 | AH140: 0 | AI140: 0 | AJ140: 0 | AK140: 0 | AL140: 0 | AM140: 0 | AN140: 0 | AO140: 0
D141: Less: Scheduled Repayment | F141: =MIN(F44,F140) -> 0 | G141: -7.709772932 | H141: 11.70561865 | I141: =MIN(I44,I140) -> -5.816164783 | J141: 14.29238881 | K141: -3.647342134 | L141: 17.18622331 | M141: -1.172643656 | N141: 20.41986327 | O141: 1.64180887 | P141: 24.0294441 | Q141: 4.833442532 | R141: 28.05484454 | S141: 8.443599344 | T141: 32.54007153 | U141: 12.51793991 | V141: 37.53368461 | W141: 17.10688853 | X141: 43.08926381 | Y141: 22.266124 | Z141: 49.26592555 | AA141: 28.05712079 | AB141: 56.1288915 | AC141: 34.54774578 | AD141: 0 | AE141: 0 | AF141: 0 | AG141: 0 | AH141: 0 | AI141: 0 | AJ141: 0 | AK141: 0 | AL141: 0 | AM141: 0 | AN141: 0 | AO141: 0
D142: Less: Cash Sweep | F142: =F98 -> 0 | G142: =G98 -> 8.015386387 | H142: 16.88216316 | I142: 21.19204829 | J142: 30.89471233 | K142: 28.62040378 | L142: 32.68598377 | M142: 28.81293093 | N142: 45.08876114 | O142: 42.7715853 | P142: 54.69368978 | Q142: 36.97253851 | R142: 44.78883063 | S142: 46.59168076 | T142: 63.57900151 | U142: 54.86690472 | V142: 68.18841748 | W142: 48.68901522 | X142: 47.54436758 | Y142: 28.65301647 | Z142: 24.53782204 | AA142: 22.33301345 | AB142: 23.43197709 | AC142: 9.850783736 | AD142: 0 | AE142: 0 | AF142: 0 | AG142: 0 | AH142: 0 | AI142: 0 | AJ142: 0 | AK142: 0 | AL142: 0 | AM142: 0 | AN142: 0 | AO142: 0
D143: Closing Balance | F143: =F45 -> 1275 | G143: =G140-G141-G142 -> 1274.694387 | H143: 1246.106605 | I143: 1230.730721 | J143: 1185.54362 | K143: 1160.570558 | L143: 1110.698351 | M143: 1083.058064 | N143: 1017.54944 | O143: 973.1360455 | P143: 894.4129116 | Q143: 852.6069306 | R143: 779.7632554 | S143: 724.7279753 | T143: 628.6089023 | U143: 561.2240576 | V143: 455.5019555 | W143: 389.7060518 | X143: 299.0724204 | Y143: 248.1532799 | Z143: 174.3495323 | AA143: 123.9593981 | AB143: 44.39852951 | AC143: 0 | AD143: 0 | AE143: 0 | AF143: 0 | AG143: 0 | AH143: 0 | AI143: 0 | AJ143: 0 | AK143: 0 | AL143: 0 | AM143: 0 | AN143: 0 | AO143: 0
D144: Interest | E144: =$E$27 -> 0.05 | F144: =$E$144*F140 -> 0 | G144: =$E$144*G140 -> 63.75 | H144: 63.73471933 | I144: 62.30533024 | J144: 61.53653606 | K144: 59.277181 | L144: 58.02852792 | M144: 55.53491757 | N144: 54.1529032 | O144: 50.87747198 | P144: 48.65680228 | Q144: 44.72064558 | R144: 42.63034653 | S144: 38.98816277 | T144: 36.23639877 | U144: 31.43044511 | V144: 28.06120288 | W144: 22.77509778 | X144: 19.48530259 | Y144: 14.95362102 | Z144: 12.407664 | AA144: 8.717476617 | AB144: 6.197969905 | AC144: 2.219926476 | AD144: 0 | AE144: 0 | AF144: 0 | AG144: 0 | AH144: 0 | AI144: 0 | AJ144: 0 | AK144: 0 | AL144: 0 | AM144: 0 | AN144: 0 | AO144: 0
D146: Opening Balance After Scheduled | F146: =F140-F141 -> 0 | G146: =G140-G141 -> 1282.709773 | H146: 1262.988768 | I146: =I140-I141 -> 1251.92277 | J146: 1216.438332 | K146: 1189.190962 | L146: 1143.384335 | M146: 1111.870995 | N146: 1062.638201 | O146: 1015.907631 | P146: 949.1066014 | Q146: 889.5794691 | R146: 824.552086 | S146: 771.3196561 | T146: 692.1879038 | U146: 616.0909623 | V146: 523.690373 | W146: 438.395067 | X146: 346.616788 | Y146: 276.8062964 | Z146: 198.8873544 | AA146: 146.2924116 | AB146: 67.83050661 | AC146: 9.850783736 | AD146: 0 | AE146: 0 | AF146: 0 | AG146: 0 | AH146: 0 | AI146: 0 | AJ146: 0 | AK146: 0 | AL146: 0 | AM146: 0 | AN146: 0 | AO146: 0
B148: Balance Sheet for Testing with No Depreciation
C149: EBITDA | F149: =F75 -> 0 | G149: 70.0654066 | H149: 103.7051942 | I149: 90.83732812 | J149: 125.7208337 | K149: 101.4589837 | L149: 127.9338411 | M149: 100.5419515 | N149: 146.4465885 | O149: 120.2297908 | P149: 159.4126406 | Q149: 108.4006591 | R149: 142.2513891 | S149: 121.136428 | T149: 169.3310313 | U149: 130.4453751 | V149: 173.3236957 | W149: 116.9375914 | X149: 138.6286396 | Y149: 83.51570313 | Z149: 102.4208986 | AA149: 73.41440401 | AB149: 101.4634493 | AC149: 80.12399759 | AD149: 99.97960929 | AE149: 66.05371394 | AF149: 90.56717103 | AG149: 69.68230633 | AH149: 100.2289016 | AI149: 76.85550126 | AJ149: 104.0949689 | AK149: 86.96570052 | AL149: 120.8856587 | AM149: 89.40459532 | AN149: 123.7280872 | AO149: 93.9384345
C150: Less: Interest | F150: =F144+F137 -> 0 | G150: =G144+G137 -> 63.75 | H150: 63.73471933 | I150: 62.30533024 | J150: 61.53653606 | K150: 59.277181 | L150: 58.02852792 | M150: 55.53491757 | N150: 54.1529032 | O150: 50.87747198 | P150: 48.65680228 | Q150: 44.72064558 | R150: 42.63034653 | S150: 38.98816277 | T150: 36.23639877 | U150: 31.43044511 | V150: 28.06120288 | W150: 22.77509778 | X150: 19.48530259 | Y150: 14.95362102 | Z150: 12.407664 | AA150: 8.717476617 | AB150: 6.197969905 | AC150: 2.219926476 | AD150: 0 | AE150: 0 | AF150: 0 | AG150: 0 | AH150: 0 | AI150: 0 | AJ150: 0 | AK150: 0 | AL150: 0 | AM150: 0 | AN150: 0 | AO150: 0
C151: EBTDA | F151: =F149-F150 -> 0 | G151: =G149-G150 -> 6.315406603 | H151: 39.97047483 | I151: 28.53199788 | J151: 64.18429764 | K151: 42.18180271 | L151: 69.90531317 | M151: 45.00703394 | N151: 92.29368533 | O151: 69.35231881 | P151: 110.7558383 | Q151: 63.68001347 | R151: 99.62104261 | S151: 82.14826524 | T151: 133.0946325 | U151: 99.01492996 | V151: 145.2624928 | W151: 94.16249365 | X151: 119.1433371 | Y151: 68.56208211 | Z151: 90.01323462 | AA151: 64.69692739 | AB151: 95.26547935 | AC151: 77.90407112 | AD151: 99.97960929 | AE151: 66.05371394 | AF151: 90.56717103 | AG151: 69.68230633 | AH151: 100.2289016 | AI151: 76.85550126 | AJ151: 104.0949689 | AK151: 86.96570052 | AL151: 120.8856587 | AM151: 89.40459532 | AN151: 123.7280872 | AO151: 93.9384345
C153: Assets
D154: Accumulated Capital Expenditure | F154: =E154+E13 -> 1500 | G154: 1500 | H154: 1500 | I154: 1500 | J154: 1500 | K154: 1500 | L154: 1500 | M154: 1500 | N154: 1500 | O154: 1500 | P154: 1500 | Q154: 1500 | R154: 1500 | S154: 1500 | T154: 1500 | U154: 1500 | V154: 1500 | W154: 1500 | X154: 1500 | Y154: 1500 | Z154: 1500 | AA154: 1500 | AB154: 1500 | AC154: 1500 | AD154: 1500 | AE154: 1500 | AF154: 1500 | AG154: 1500 | AH154: 1500 | AI154: 1500 | AJ154: 1500 | AK154: 1500 | AL154: 1500 | AM154: 1500 | AN154: 1500 | AO154: 1500
D155: DSRA | F155: =F130 -> 131.8813344 | G155: =G130 -> 133.5751502 | H155: 135.8674477 | I155: 137.6124591 | J155: 139.9740413 | K155: 141.7717957 | L155: 144.2047567 | M155: 146.0568482 | N155: 148.5633455 | O155: 150.4714165 | P155: 153.0536726 | Q155: 155.0194151 | R155: 157.6797198 | S155: 159.7048769 | T155: 162.4455894 | U155: 164.5319568 | V155: 167.3555073 | W155: 169.5049352 | X155: 172.4138275 | Y155: 174.6282218 | Z155: 177.6250355 | AA155: 179.9063598 | AB155: 182.9937522 | AC155: 185.3440296 | AD155: 188.5247383 | AE155: 190.9460529 | AF155: 194.2228985 | AG155: 196.7173973 | AH155: 200.0932856 | AI155: 202.6631806 | AJ155: 206.1411052 | AK155: 208.7886753 | AL155: 212.3717201 | AM155: 122.1287796 | AN155: 0 | AO155: 0
D156: Lock-up Reserve Account | F156: =F122 -> 0 | G156: =G122 -> 0 | H156: 0 | I156: 0 | J156: 0 | K156: 0 | L156: 0 | M156: 0 | N156: 0 | O156: 0 | P156: 0 | Q156: 0 | R156: 0 | S156: 0 | T156: 0 | U156: 0 | V156: 0 | W156: 0 | X156: 0 | Y156: 0 | Z156: 0 | AA156: 0 | AB156: 0 | AC156: 0 | AD156: 0 | AE156: 0 | AF156: 0 | AG156: 0 | AH156: 0 | AI156: 0 | AJ156: 0 | AK156: 0 | AL156: 0 | AM156: 0 | AN156: 0 | AO156: 0
D157: Total Assets | F157: =SUM(F154:F156) -> 1631.881334 | G157: =SUM(G154:G156) -> 1633.57515 | H157: 1635.867448 | I157: 1637.612459 | J157: 1639.974041 | K157: 1641.771796 | L157: 1644.204757 | M157: 1646.056848 | N157: 1648.563345 | O157: 1650.471416 | P157: 1653.053673 | Q157: 1655.019415 | R157: 1657.67972 | S157: 1659.704877 | T157: 1662.445589 | U157: 1664.531957 | V157: 1667.355507 | W157: 1669.504935 | X157: 1672.413828 | Y157: 1674.628222 | Z157: 1677.625035 | AA157: 1679.90636 | AB157: 1682.993752 | AC157: 1685.34403 | AD157: 1688.524738 | AE157: 1690.946053 | AF157: 1694.222899 | AG157: 1696.717397 | AH157: 1700.093286 | AI157: 1702.663181 | AJ157: 1706.141105 | AK157: 1708.788675 | AL157: 1712.37172 | AM157: 1622.12878 | AN157: 1500 | AO157: 1500
C159: Liabilities and Equity
D160: Debt Balance | F160: =F143 -> 1275 | G160: =G143 -> 1274.694387 | H160: 1246.106605 | I160: 1230.730721 | J160: 1185.54362 | K160: 1160.570558 | L160: 1110.698351 | M160: 1083.058064 | N160: 1017.54944 | O160: 973.1360455 | P160: 894.4129116 | Q160: 852.6069306 | R160: 779.7632554 | S160: 724.7279753 | T160: 628.6089023 | U160: 561.2240576 | V160: 455.5019555 | W160: 389.7060518 | X160: 299.0724204 | Y160: 248.1532799 | Z160: 174.3495323 | AA160: 123.9593981 | AB160: 44.39852951 | AC160: 0 | AD160: 0 | AE160: 0 | AF160: 0 | AG160: 0 | AH160: 0 | AI160: 0 | AJ160: 0 | AK160: 0 | AL160: 0 | AM160: 0 | AN160: 0 | AO160: 0
D161: Default Balance | F161: =F136 -> 0 | G161: =G136 -> 0 | H161: 0 | I161: 0 | J161: 0 | K161: 0 | L161: 0 | M161: 0 | N161: 0 | O161: 0 | P161: 0 | Q161: 0 | R161: 0 | S161: 0 | T161: 0 | U161: 0 | V161: 0 | W161: 0 | X161: 0 | Y161: 0 | Z161: 0 | AA161: 0 | AB161: 0 | AC161: 0 | AD161: 0 | AE161: 0 | AF161: 0 | AG161: 0 | AH161: 0 | AI161: 0 | AJ161: 0 | AK161: 0 | AL161: 0 | AM161: 0 | AN161: 0 | AO161: 0
D163: Equity Balance
D164: Opening Balance | F164: =E168 -> 0 | G164: =F168 -> 356.8813344 | H164: 358.8807637 | I164: 389.760843 | J164: 406.8817379 | K164: 454.4304212 | L164: 481.2012373 | M164: 533.5064053 | N164: 562.9987842 | O164: 631.0139058 | P164: 677.335371 | Q164: 758.640761 | R164: 802.4124845 | S164: 877.9164644 | T164: 934.9769016 | U164: 1033.836687 | V164: 1103.307899 | W164: 1211.853552 | X164: 1279.798883 | Y164: 1373.341407 | Z164: 1426.474942 | AA164: 1503.275503 | AB164: 1555.946962 | AC164: 1638.595223 | AD164: 1685.34403 | AE164: 1688.524738 | AF164: 1690.946053 | AG164: 1694.222899 | AH164: 1696.717397 | AI164: 1700.093286 | AJ164: 1702.663181 | AK164: 1706.141105 | AL164: 1708.788675 | AM164: 1712.37172 | AN164: 1622.12878 | AO164: 1500
D165: Add: Paid in Capital | F165: =-F106 -> 356.8813344 | G165: =-G106 -> 0 | H165: 0 | I165: 0 | J165: 0 | K165: 0 | L165: 0 | M165: 0 | N165: 0 | O165: 0 | P165: 0 | Q165: 0 | R165: 0 | S165: 0 | T165: 0 | U165: 0 | V165: 0 | W165: 0 | X165: 0 | Y165: 0 | Z165: 0 | AA165: 0 | AB165: 0 | AC165: 0 | AD165: 0 | AE165: 0 | AF165: 0 | AG165: 0 | AH165: 0 | AI165: 0 | AJ165: 0 | AK165: 0 | AL165: 0 | AM165: 0 | AN165: 0 | AO165: 0
D166: Add: Income | F166: =F151 -> 0 | G166: =G151 -> 6.315406603 | H166: 39.97047483 | I166: 28.53199788 | J166: 64.18429764 | K166: 42.18180271 | L166: 69.90531317 | M166: 45.00703394 | N166: 92.29368533 | O166: 69.35231881 | P166: 110.7558383 | Q166: 63.68001347 | R166: 99.62104261 | S166: 82.14826524 | T166: 133.0946325 | U166: 99.01492996 | V166: 145.2624928 | W166: 94.16249365 | X166: 119.1433371 | Y166: 68.56208211 | Z166: 90.01323462 | AA166: 64.69692739 | AB166: 95.26547935 | AC166: 77.90407112 | AD166: 99.97960929 | AE166: 66.05371394 | AF166: 90.56717103 | AG166: 69.68230633 | AH166: 100.2289016 | AI166: 76.85550126 | AJ166: 104.0949689 | AK166: 86.96570052 | AL166: 120.8856587 | AM166: 89.40459532 | AN166: 123.7280872 | AO166: 93.9384345
D167: Less: Dividends | F167: =F104 -> 0 | G167: =G104 -> 4.315977285 | H167: 9.090395548 | I167: 11.41110293 | J167: 16.63561433 | K167: 15.41098665 | L167: 17.60014511 | M167: 15.51465512 | N167: 24.27856369 | O167: 23.03085362 | P167: 29.45044834 | Q167: 19.90828997 | R167: 24.11706265 | S167: 25.0878281 | T167: 34.23484697 | U167: 29.54371793 | V167: 36.71684018 | W167: 26.21716204 | X167: 25.60081331 | Y167: 15.42854733 | Z167: 13.2126734 | AA167: 12.02546878 | AB167: 12.61721844 | AC167: 31.1552642 | AD167: 96.79890054 | AE167: 63.6323994 | AF167: 87.29032535 | AG167: 67.18780756 | AH167: 96.8530133 | AI167: 74.28560626 | AJ167: 100.6170444 | AK167: 84.31813045 | AL167: 117.3026139 | AM167: 179.6475359 | AN167: 245.8568668 | AO167: 93.9384345
D168: Closing Balance | F168: =F164+F165+F166-F167 -> 356.8813344 | G168: =G164+G165+G166-G167 -> 358.8807637 | H168: 389.760843 | I168: 406.8817379 | J168: 454.4304212 | K168: 481.2012373 | L168: 533.5064053 | M168: 562.9987842 | N168: 631.0139058 | O168: 677.335371 | P168: 758.640761 | Q168: 802.4124845 | R168: 877.9164644 | S168: 934.9769016 | T168: 1033.836687 | U168: 1103.307899 | V168: 1211.853552 | W168: 1279.798883 | X168: 1373.341407 | Y168: 1426.474942 | Z168: 1503.275503 | AA168: 1555.946962 | AB168: 1638.595223 | AC168: 1685.34403 | AD168: 1688.524738 | AE168: 1690.946053 | AF168: 1694.222899 | AG168: 1696.717397 | AH168: 1700.093286 | AI168: 1702.663181 | AJ168: 1706.141105 | AK168: 1708.788675 | AL168: 1712.37172 | AM168: 1622.12878 | AN168: 1500 | AO168: 1500
D170: Liabilites and Capital | F170: =F160+F161+F168 -> 1631.881334 | G170: =G160+G161+G168 -> 1633.57515 | H170: 1635.867448 | I170: 1637.612459 | J170: 1639.974041 | K170: 1641.771796 | L170: 1644.204757 | M170: 1646.056848 | N170: 1648.563345 | O170: 1650.471416 | P170: 1653.053673 | Q170: 1655.019415 | R170: 1657.67972 | S170: 1659.704877 | T170: 1662.445589 | U170: 1664.531957 | V170: 1667.355507 | W170: 1669.504935 | X170: 1672.413828 | Y170: 1674.628222 | Z170: 1677.625035 | AA170: 1679.90636 | AB170: 1682.993752 | AC170: 1685.34403 | AD170: 1688.524738 | AE170: 1690.946053 | AF170: 1694.222899 | AG170: 1696.717397 | AH170: 1700.093286 | AI170: 1702.663181 | AJ170: 1706.141105 | AK170: 1708.788675 | AL170: 1712.37172 | AM170: 1622.12878 | AN170: 1500 | AO170: 1500
F171: =F170-F157 -> 0 | G171: =G170-G157 -> 0 | H171: =H170-H157 -> 0 | I171: 0 | J171: 0 | K171: 0 | L171: 0 | M171: 0 | N171: 0 | O171: 0 | P171: 0 | Q171: 0 | R171: 0 | S171: 0 | T171: 0 | U171: 0 | V171: 0 | W171: 0 | X171: 0 | Y171: 0 | Z171: 0 | AA171: 0 | AB171: 0 | AC171: 0 | AD171: 0 | AE171: 0 | AF171: 0 | AG171: 0 | AH171: 0 | AI171: 0 | AJ171: 0 | AK171: 0 | AL171: 0 | AM171: 0 | AN171: 0 | AO171: 0
D174: DSCR Spinner Input | E174: 110
D175: Volatility | E175: 10
D176: Mean Reversion | E176: 7
D178: Lockup Spinner | E178: 110
D179: Cash Sweep Spinner | E179: 65
D180: DSRA Spinner | E180: 100
C183: Monte Carlo
D215: Volatility | E215: =vol -> 0.1
D216: Mean Reversion | E216: =mr -> 0.07
D217: Target DSCR | E217: =E11 -> 1.2
E219: DSCR | F219: PLCR | G219: LLCR
D221: Count | E221: =COUNT(E228:E1048576) -> 1000 | F221: =COUNT(F228:F1048576) -> 1000 | G221: =COUNT(G228:G1048576) -> 1000
D222: Count < 1 | E222: =COUNTIF(E228:E1048576,"<1") -> 13 | F222: =COUNTIF(F228:F1048576,"<1") -> 0 | G222: =COUNTIF(G228:G1048576,"<1") -> 0
D223: Probability | E223: =E222/E221 -> 0.013 | F223: =F222/F221 -> 0 | G223: =G222/G221 -> 0
D224: Average | E224: =AVERAGE(E228:E1227) -> 1.197963753 | F224: =AVERAGE(F228:F1227) -> 1.765244743 | G224: =AVERAGE(G228:G1227) -> 1.499197465
E226: =AVERAGE(E229:E327) -> 1.198119625
E228: 1.284107228 | F228: 1.705951988 | G228: 1.526621324
E229: 1.128914854 | F229: 1.726268556 | G229: 1.366363818
E230: 1.102430839 | F230: 1.714261108 | G230: 1.524125494
E231: 1.231890409 | F231: 1.704634417 | G231: 1.405310288
E232: 1.273704535 | F232: 1.789554738 | G232: 1.460737637
E233: 1.15139157 | F233: 1.741528293 | G233: 1.511002682
E234: 1.078371562 | F234: 1.852121252 | G234: 1.455864714
E235: 1.244926802 | F235: 1.6938769 | G235: 1.532415943
E236: 1.280038688 | F236: 1.965913536 | G236: 1.488515948
E237: 1.029278401 | F237: 1.813105126 | G237: 1.531808693
E238: 1.157314099 | F238: 1.876287601 | G238: 1.632121973
E239: 1.117982086 | F239: 1.641971048 | G239: 1.469908082
E240: 1.384917447 | F240: 1.789952249 | G240: 1.376786784
E241: 1.129604382 | F241: 1.736558398 | G241: 1.456119338
E242: 1.144715635 | F242: 1.732806018 | G242: 1.509601765
E243: 1.116227841 | F243: 1.857364085 | G243: 1.468636905
E244: 1.158172631 | F244: 1.764924417 | G244: 1.453305717
E245: 0.973372801 | F245: 1.817024872 | G245: 1.495954853
E246: 1.235483706 | F246: 1.778556674 | G246: 1.515405202
E247: 1.383988984 | F247: 1.835540495 | G247: 1.539020696
E248: 1.189783036 | F248: 1.690114601 | G248: 1.555063923
E249: 1.118556132 | F249: 1.776291366 | G249: 1.496365184
E250: 1.134717102 | F250: 1.703728645 | G250: 1.454592975
E251: 0.8864275177 | F251: 1.718732141 | G251: 1.503364963
E252: 1.218697052 | F252: 1.744753641 | G252: 1.496497908
E253: 1.263382312 | F253: 1.774602783 | G253: 1.451869251
E254: 1.233133378 | F254: 1.70912188 | G254: 1.464083854
E255: 1.342022225 | F255: 1.82599664 | G255: 1.425124094
E256: 1.274686234 | F256: 1.723099952 | G256: 1.555585249
E257: 1.277369632 | F257: 1.762779496 | G257: 1.602122763
E258: 1.274314208 | F258: 1.759731809 | G258: 1.518539506
E259: 1.119724886 | F259: 1.744705818 | G259: 1.463872058
E260: 1.182498382 | F260: 1.758461809 | G260: 1.498842397
E261: 1.318250173 | F261: 1.718346394 | G261: 1.474246603
E262: 1.280811358 | F262: 1.716382909 | G262: 1.547534498
E263: 1.154418726 | F263: 1.781094989 | G263: 1.570080763
E264: 1.304721858 | F264: 1.730766043 | G264: 1.472077368
E265: 1.201308078 | F265: 1.737744905 | G265: 1.471566715
E266: 1.088400087 | F266: 1.77425831 | G266: 1.395890311
E267: 1.253118401 | F267: 1.765072401 | G267: 1.522313236
E268: 1.198195219 | F268: 1.729024965 | G268: 1.601458754
E269: 1.150710951 | F269: 1.760834016 | G269: 1.394703416
E270: 1.29542349 | F270: 1.632818409 | G270: 1.551366801
E271: 1.19688989 | F271: 1.735161109 | G271: 1.447335957
E272: 1.227233791 | F272: 1.723155448 | G272: 1.563395831
E273: 1.15481408 | F273: 1.663724483 | G273: 1.596406042
... 954 more rows

Sheet Structuring Result
C2: Volatility | D2: =vol -> 0.1 | I2: Structuring | O2: With Risk
C3: Mean Reversion | D3: =mr -> 0.07
C4: DSCR Target | D4: =target_dscr -> 1.1
C6: Average DSCR | D6: 0.8665662051
C7: Average LLCR | D7: 1.217005052
C8: Average PLCR | D8: 1.233114226
C10: Average Default | D10: 22.04978394
C11: Average Default PV | D11: 3.997411623
C12: Average Default Pct | D12: 0.003135224802
C15: Probability DSCR<1 | D15: 0.7969999909
C16: Count LLCR | D16: 0.1140000001 | G16: DSCR Lock-up | I16: =Lockup -> 1.1
C17: Count PLCR | D17: 0.1019999981 | G17: Cash Sweep | I17: =Sweep -> 0.65
G18: DSRA % of Yr | I18: =DSRA -> 1
C19: Count Default | D19: 0.0700000003
C20: Count Default PV | D20: 0.0700000003
C21: Count Default Pct | D21: 0.0700000003
E98: =COUNTIF(E101:E11000,"<1") -> 638 | F98: =E98/1000 -> 0.638
E101: 0
E102: 0
E103: 0
E104: 0
E105: 0
E106: 0
E107: 0
E108: 1211.127575
E109: 0
E110: 0
E111: 821.8822452
E112: 1908.898063
E113: 0
E114: 0
E115: 51.77720148
E116: 0
E117: 0
E118: 1511.532929
E119: 0
E120: 846.95777
E121: 0
E122: 0
E123: 816.7305556
E124: 2344.314484
E125: 0
E126: 0
E127: 0
E128: 0
E129: 1234.007206
E130: 0
E131: 0
E132: 0
E133: 142.2157865
E134: 0
E135: 0
E136: 862.1605082
E137: 0
E138: 697.6485286
E139: 0
E140: 0
E141: 0
E142: 961.7345754
E143: 1953.912697
E144: 0
E145: 1924.891985
E146: 1795.391814
E147: 0
E148: 1291.434078
E149: 1179.326908
E150: 1285.783598
E151: 950.8296016
E152: 0
E153: 1187.3012
E154: 0
E155: 0
E156: 0
E157: 0
E158: 516.8872905
E159: 0
E160: 1856.399667
E161: 2291.817273
E162: 0
E163: 0
E164: 0
E165: 0
E166: 309.8824535
E167: 0
E168: 208.0069303
E169: 0
E170: 0
E171: 1571.962283
E172: 1287.66816
E173: 0
E174: 309.1582175
E175: 0
E176: 0
E177: 0
E178: 0
E179: 0
E180: 1076.512435
E181: 0
E182: 1926.677117
E183: 0
E184: 0
E185: 0
E186: 658.2448855
E187: 0
E188: 1087.098944
E189: 3096.982751
E190: 2192.595946
E191: 0
E192: 117.9300438
E193: 0
E194: 0
E195: 0
E196: 0
E197: 0
E198: 0
E199: 0
E200: 0
E201: 0
E202: 0
E203: 0
E204: 0
E205: 1490.810431
E206: 0
E207: 1336.397903
E208: 0
E209: 0
E210: 0
E211: 0
E212: 0
E213: 246.9539346
E214: 0
E215: 0
E216: 193.1535072
E217: 1148.848768
E218: 369.6198608
E219: 0
E220: 1732.490899
E221: 1041.42255
E222: 690.655797
E223: 0
E224: 0
E225: 0
E226: 2391.208621
E227: 0
E228: 2336.334978
E229: 0
E230: 772.2018092
E231: 616.41351
E232: 460.2109859
E233: 40.30857089
E234: 0
E235: 0
E236: 1662.848135
E237: 563.7379548
E238: 0
E239: 0
E240: 0
E241: 0
E242: 2073.02074
E243: 0
E244: 0
E245: 0
E246: 787.7527868
E247: 0
E248: 0
E249: 0
E250: 0
E251: 0
E252: 1037.545545
E253: 0
E254: 0
E255: 2813.197906
E256: 0
E257: 0
E258: 229.48633
E259: 2037.530578
E260: 0
E261: 1994.555474
E262: 441.539134
E263: 0
E264: 2015.489994
E265: 0
E266: 0
E267: 0
E268: 0
E269: 0
E270: 0
E271: 1133.01953
E272: 0
E273: 0
E274: 44.35997788
E275: 493.7691927
E276: 0
E277: 0
E278: 1350.533372
E279: 280.887616
E280: 0
E281: 0
E282: 0
E283: 0
... 817 more rows

Sheet Results
D2: Volatility | E2: 0.2 | I2: Volatility | J2: 0.2
D3: Mean Reversion | E3: 0 | I3: Mean Reversion | J3: 0.5
D4: Target DSCR | E4: 1.5 | I4: Target DSCR | J4: 1.5
E6: DSCR | F6: PLCR | G6: LLCR | J6: DSCR | K6: PLCR | L6: LLCR
D8: Count | E8: 1000 | F8: 1000 | G8: 1000 | I8: Count | J8: 1000 | K8: 1000 | L8: 1000
D9: Count < 1 | E9: 756 | F9: 280 | G9: 306 | I9: Count < 1 | J9: 773 | K9: 0 | L9: 0
D10: Probability | E10: 0.756 | F10: 0.28 | G10: 0.306 | I10: Probability | J10: 0.773 | K10: 0 | L10: 0
D11: Average | E11: 0.6813706888 | F11: 1.695584064 | G11: 1.523980819 | I11: Average | J11: 0.8967660939 | K11: 1.763992621 | L11: 1.501302837
D13: Volatility | E13: 0.1 | I13: Volatility | J13: 0.1
D14: Mean Reversion | E14: 0 | I14: Mean Reversion | J14: 0.5
D15: Target DSCR | E15: 1.2 | I15: Target DSCR | J15: 1.2
E17: DSCR | F17: PLCR | G17: LLCR | J17: DSCR | K17: PLCR | L17: LLCR
D19: Count | E19: 1000 | F19: 1000 | G19: 1000 | I19: Count | J19: 1000 | K19: 1000 | L19: 1000
D20: Count < 1 | E20: 466 | F20: 36 | G20: 92 | I20: Count < 1 | J20: 13 | K20: 0 | L20: 0
D21: Probability | E21: 0.466 | F21: 0.036 | G21: 0.092 | I21: Probability | J21: 0.013 | K21: 0 | L21: 0
D22: Average | E22: 1.028998888 | F22: 1.769554848 | G22: 1.497444116 | I22: Average | J22: 1.197963753 | K22: 1.765244743 | L22: 1.499197465

Sheet Beta
B3: Downloaded Equity Beta | F3: 0.6 | K3: Ba = Bd x D + Be x E
B4: Debt/Captital Book | F4: 0.55 | K4: Be x E = Ba - Bd x D
B5: Market/Book | F5: 2 | K5: Be = (Ba - Bd x D)/E
B6: Debt/Capital Market | F6: =55/(45*2+55) -> 0.3793103448
B8: Debt Beta | F8: 0
B9: EMRP (Damodaran) | F9: 0.0594
B10: Rf | F10: 0.038
B12: Asset Beta | F12: =I12*L12+O12*R12 -> 0.3724137931 | H12: Debt/Cap | I12: =F6 -> 0.3793103448 | J12: x | K12: Debt Beta | L12: =F8 -> 0 | M12: + | N12: Equity/Cap | O12: =1-I12 -> 0.6206896552 | P12: x | Q12: Equity Beta | R12: =F3 -> 0.6
B14: Re-levered Equity Beta | F14: =(I14-L14*O14)/R14 -> 1.862068966 | H14: Asset Beta | I14: =F12 -> 0.3724137931 | J14: - | K14: Debt Beta | L14: =L12 -> 0 | M14: x | N14: Debt/Cap | O14: 0.8 | P14: / | Q14: Equity/Cap | R14: =1-O14 -> 0.2
B16: CAPM Cost of Equity | F16: =I16+L16*O16 -> 0.1486068966 | H16: Rf | I16: =F10 -> 0.038 | J16: + | K16: Beta | L16: =F14 -> 1.862068966 | M16: x | N16: EMRP | O16: =F9 -> 0.0594
B18: WACC with Un-Levering and Re-Levering | K18: Cost of Capital with Target IRR
D19: Credit Spread | F19: 0.015 | L19: Credit Spread | N19: 0.015
F21: Percent | H21: Cost | I21: WACC | N21: Percent | P21: Cost | Q21: WACC
D22: Debt | F22: 0.8 | H22: =F19+F10 -> 0.053 | I22: =H22*F22 -> 0.0424 | L22: Debt | N22: 0.8 | P22: =H22 -> 0.053 | Q22: =P22*N22 -> 0.0424
D23: Equity | F23: =1-F22 -> 0.2 | H23: =F16 -> 0.1486068966 | I23: =H23*F23 -> 0.02972137931 | L23: Equity | N23: =1-N22 -> 0.2 | P23: 0.07 | Q23: =P23*N23 -> 0.014
I24: =SUM(I22:I23) -> 0.07212137931 | Q24: =SUM(Q22:Q23) -> 0.0564
D26: Inflation | I26: 0.025 | Q26: 0.025
D27: Real Cost of Capital | I27: =(1+I24)/(1+I26)-1 -> 0.04597207738 | Q27: =(1+Q24)/(1+Q26)-1 -> 0.03063414634
D30: Percent Increase | I30: =I27/Q27-1 -> 0.5006808698
